{"text_format":"1","workbook":"xlsx","n_sheets":11,"sheets":["TEMPLATE Logos","Zahlungsantrag LEW14-20","TEMPLATE Zahlungsantrag","TEMPLATE Fördergeber","Auswahl Belegaufstellungen","TEMPLATE Auswahl Belegaufst.","TEMPLATE Übersicht","TEMPLATE Invest & Sachkosten","TEMPLATE Unbare Sachleistungen","TEMPLATE Personalkosten","TEMPLATE Gehaltsgrenzen"],"not_rendered":{"charts":0,"images":23,"macros":1,"external_links":0,"defined_names":212,"comments":3,"pivot_tables":0},"unopened":[],"bounds":{"document_bytes":16777216,"sheet_cells":100000,"rows_first":2000,"rows_last":500,"rows_between":2000,"halvings":0,"cell_chars":16384,"cell_head_chars":4096},"cells_cut":0,"cells_raw":0,"read":"whole","date_system":"1900"}

{"sheet":"TEMPLATE Logos","index":0,"n_rows":0,"n_cols":0,"rows_kept":0,"cut":false,"hidden":true,"merged":[]}

{"sheet":"Zahlungsantrag LEW14-20","index":1,"n_rows":235,"n_cols":41,"rows_kept":235,"cut":false,"hidden":false,"merged":[[0,0,4,8],[0,9,0,12],[0,13,4,38],[1,9,1,12],[2,9,2,12],[3,9,3,12],[4,9,4,12],[6,0,6,38],[7,0,7,38],[8,0,8,38],[10,0,10,22],[10,24,10,38],[11,0,11,22],[11,24,17,38],[13,0,13,15],[15,0,15,7],[15,8,15,10],[15,13,15,20],[17,0,17,13],[17,15,17,17],[19,0,19,38],[21,0,21,38],[22,0,22,38],[24,0,24,11],[24,12,24,38],[26,0,26,38],[28,0,28,11],[28,12,28,21],[28,23,28,30],[28,31,28,38],[30,0,30,38],[31,1,31,7],[31,8,31,24],[31,26,31,30],[33,0,33,38],[34,1,34,7],[34,8,34,24],[34,26,34,30],[36,1,36,7],[36,8,36,24],[36,26,36,30],[38,0,38,38],[39,1,39,7],[39,8,39,38],[41,1,41,7],[41,8,41,24],[41,26,41,31],[41,32,41,38],[42,0,43,38],[44,1,44,7],[44,8,44,38],[46,1,46,7],[46,8,46,38],[48,0,48,7],[48,8,48,24],[48,26,48,30],[50,0,50,7],[50,8,50,24],[50,26,50,30],[52,0,52,11],[52,12,52,38],[54,0,54,11],[54,12,54,38],[56,0,56,11],[56,12,56,38],[58,0,58,11],[58,12,58,38],[60,0,60,11],[60,12,60,38],[62,0,62,38],[64,0,64,4],[66,0,66,4],[69,0,69,6],[69,7,69,20],[69,22,69,30],[69,31,69,38],[71,0,71,38],[73,0,73,38],[75,2,75,9],[75,11,75,18],[75,20,75,27],[75,29,75,36],[67,0,67,38],[77,2,77,7],[77,8,77,9],[77,11,77,16],[77,17,77,18],[77,20,77,25],[77,26,77,27],[77,29,77,34],[77,35,77,36],[79,0,79,19],[79,22,79,23],[79,24,79,28],[79,30,79,31],[79,32,79,36],[85,0,85,24],[85,26,85,27],[85,30,85,31],[85,35,85,36],[87,0,87,24],[87,26,87,27],[87,30,87,31],[87,35,87,36],[81,0,81,24],[81,26,81,27],[81,29,81,32],[81,34,81,37],[83,0,83,24],[83,26,83,27],[83,30,83,31],[83,35,83,36],[89,88,89,89],[91,0,91,24],[91,26,91,27],[91,30,91,31],[91,35,91,36],[91,79,91,80],[91,83,91,84],[91,88,91,89],[89,0,89,24],[89,26,89,27],[89,30,89,31],[89,35,89,36],[89,79,89,80],[89,83,89,84],[93,0,93,24],[93,26,93,27],[93,30,93,31],[93,35,93,36],[95,0,95,24],[95,26,95,27],[95,30,95,31],[95,35,95,36],[97,0,97,6],[97,7,97,24],[99,0,99,24],[99,26,99,27],[99,29,99,32],[99,34,99,37],[101,0,101,24],[101,26,101,27],[101,30,101,31],[101,35,101,36],[103,0,103,24],[103,26,103,27],[103,30,103,31],[103,35,103,36],[105,0,105,24],[105,26,105,27],[105,30,105,31],[105,35,105,36],[107,0,107,24],[107,26,107,27],[107,30,107,31],[107,35,107,36],[109,0,109,6],[109,7,109,24],[111,0,111,24],[111,26,111,27],[111,28,111,37],[113,0,113,38],[114,0,116,24],[115,26,116,37],[118,0,118,6],[118,7,118,24],[118,28,118,35],[120,0,120,6],[120,7,120,24],[120,28,120,35],[122,0,122,6],[122,7,122,24],[122,28,122,35],[124,0,124,38],[125,0,125,38],[126,0,126,38],[133,0,133,6],[133,8,133,22],[133,24,133,38],[127,0,127,38],[128,0,128,38],[130,0,130,38],[132,0,132,6],[132,8,132,22],[132,24,132,38],[129,0,129,38]]}
[null,null,null,null,null,null,null,null,null,"Agrarmarkt Austria"]
[null,null,null,null,null,null,null,null,null,"Dresdner Straße 70",null,null,null,null,null,null,null,null,null,null,null,null,null,null,null,null,null,null,null,null,null,null,null,null,null,null,null,null,null,null,{"$f":"VLOOKUP(PaymAppl_IntentCode,ProjectTypeSponsors,2)","v":"BMLFUW/LE1420/LD/EU"}]
[null,null,null,null,null,null,null,null,null,"A-1200 Wien",null,null,null,null,null,null,null,null,null,null,null,null,null,null,null,null,null,null,null,null,null,null,null,null,null,null,null,null,null,null,"BMLFUW/LE1420/LD/EU"]
[null,null,null,null,null,null,null,null,null,"www.ama.at",null,null,null,null,null,null,null,null,null,null,null,null,null,null,null,null,null,null,null,null,null,null,null,null,null,null,null,null,null,null,10]
[null,null,null,null,null,null,null,null,null,"DVR: 0719838"]
[]
["Zahlungsantrag"]
["zur Auszahlung einer Förderung eines Vorhabens  "]
["im Rahmen des Österreichischen Programms für ländliche Entwicklung 2014 - 2020"]
[]
["Antragsnummer des betroffenen Vorhabens",null,null,null,null,null,null,null,null,null,null,null,null,null,null,null,null,null,null,null,null,null,null,null,"Eingangsvermerk (Einreich-/Bewilligende Stelle)"]
[]
[]
["Bei vorgelegter Abrechnung handelt es sich um die"]
[]
[]
[]
["Der Gebietskörperschaftsanteil beträgt in %"]
[]
["Vorhaben"]
[]
["Code / Vorhabensart"]
["Bitte auswählen"]
[]
["Kurzbezeichnung des Vorhabens:"]
[]
["Angaben zum Förderungswerber/zur Förderungswerberin "]
[]
["Betriebs- bzw. Klientennummer:",null,null,null,null,null,null,null,null,null,null,null,null,null,null,null,null,null,null,null,null,null,null,"Vorsteuerabzugsberechtigt",null,null,null,null,null,null,null,null,null,null,null,null,null,null,null,null,"Ja"]
[]
[]
[null,"Titel, Name, Vorname",null,null,null,null,null,null,null,null,null,null,null,null,null,null,null,null,null,null,null,null,null,null,null,null,"Geburtsdatum"]
[]
[]
[null,"Titel, Name, Vorname",null,null,null,null,null,null,null,null,null,null,null,null,null,null,null,null,null,null,null,null,null,null,null,null,"Geburtsdatum"]
[]
[null,"Titel, Name, Vorname",null,null,null,null,null,null,null,null,null,null,null,null,null,null,null,null,null,null,null,null,null,null,null,null,"Geburtsdatum"]
[]
["  "]
[null,"Name/Unternehmen"]
[]
[null,"Gesellschaftsform",null,null,null,null,null,null,null,null,null,null,null,null,null,null,null,null,null,null,null,null,null,null,null,null,"ZVR/FB-Nr./GKZ"]
[]
[]
[null,"Name"]
[]
[null,"Gesellschaftsform"]
[]
["Vertretungsbefugte/r",null,null,null,null,null,null,null,null,null,null,null,null,null,null,null,null,null,null,null,null,null,null,null,null,null,"Geburtsdatum"]
[]
["Vertretungsbefugte/r",null,null,null,null,null,null,null,null,null,null,null,null,null,null,null,null,null,null,null,null,null,null,null,null,null,"Geburtsdatum"]
[]
["Zustelladresse: Straße, Hausnr."]
[]
["Zustelladresse: PLZ, Ort"]
[]
["Betriebsadresse: Straße, Hausnr."]
[]
["Betriebsadresse: PLZ, Ort"]
[]
["Mobil-,Telefonnr./Email-/Internetadresse"]
[]
["Bankverbindung"]
[]
["BIC"]
[]
["IBAN"]
["Achtung: Alle Zahlungen werden auf die letzte von Ihnen bekanntgegebene Bankverbindung überwiesen. Ihr Auszahlungskonto können Sie jederzeit im eAMA unter KUNDENDATEN einsehen und ändern."]
[]
["Förderungswerber/in",null,null,null,null,null,null,{"$f":"IF(IsEmptyString(PaymAppl_IndividualName),\"\",PaymAppl_IndividualName)","v":""},null,null,null,null,null,null,null,null,null,null,null,null,null,null,"Betriebs-/Klientennummer",null,null,null,null,null,null,null,null,{"$f":"IF(ISBLANK(M29),\"\",M29)","v":""}]
[]
["Zahlungsantrag (Seite 2)"]
[]
["eingereichte Kosten"]
[]
[null,null,"Belegbetrag brutto",null,null,null,null,null,null,null,null,"Belegbetrag netto",null,null,null,null,null,null,null,null,"eingereichte Kosten"]
[]
[null,null,null,null,null,null,null,null,"€",null,null,null,null,null,null,null,null,"€",null,null,null,null,null,null,null,null,"€"]
[]
["genehmigter Zeitraum für die Kostenanerkennung",null,null,null,null,null,null,null,null,null,null,null,null,null,null,null,null,null,null,null,null,null,"von",null,null,null,null,null,null,null,"bis"]
[]
["Allgemeine Beilagen",null,null,null,null,null,null,null,null,null,null,null,null,null,null,null,null,null,null,null,null,null,null,null,null,null,"liegt \nbei",null,null,"wird \nnachgereicht",null,null,null,null,"nicht \nerforderlich"]
[]
["Abrechnungsbelege (Rechnungen, Honorarnoten, etc.)"]
[]
["Belegaufstellung - Investitionen"]
[]
["Zahlungsnachweis/e"]
[]
["Soll-Ist-Vergleich "]
[]
["Erläuterung der Abweichungen"]
[]
["Nachweis der Aktivierung"]
[]
["Nachweis über die Einhaltung der Publizitätskriterien"]
[]
["Sonstige Beilage(n):"]
[]
["Vorhabensspezifische Beilagen, die spätestens mit der Endabrechnung vorgelegt werden  müssen: ",null,null,null,null,null,null,null,null,null,null,null,null,null,null,null,null,null,null,null,null,null,null,null,null,null,"liegt \nbei",null,null,"wird \nnachgereicht",null,null,null,null,"nicht \nerforderlich"]
[]
["Benutzungsbewilligung / Betriebsanlagengenehmigung"]
[]
["Endbericht"]
[]
["Versichungsnachweis bei Investitionen in unbewegl. Investitionsgegenstände"]
[]
["Evaluierungsdatenblatt"]
[]
["Sonstige Beilage(n):"]
[]
["Angaben zu anderen Förderungen/Zuschüssen",null,null,null,null,null,null,null,null,null,null,null,null,null,null,null,null,null,null,null,null,null,null,null,null,null,null,null,"Keine weitere/n Förderung/en \nbzw. Zuschüsse"]
[]
["Im Rahmen d. Projektes wurde bei folgenden anderen Förderstellen um eine Förderung bzw. einen Zuschuss angesucht:"]
["Geben Sie hier die entsprechende Stelle sowie die/den beantragte(n)/genehmigten(n)/erhaltene(n) Förderung/Zuschuss an!"]
[null,null,null,null,null,null,null,null,null,null,null,null,null,null,null,null,null,null,null,null,null,null,null,null,null,null,"Förderung/Zuschuss im Ausmaß von "]
[]
[]
["Bund:",null,null,null,null,null,null,null,null,null,null,null,null,null,null,null,null,null,null,null,null,null,null,null,null,null,null,null,null,null,null,null,null,null,null,null,"€"]
[]
["Land:",null,null,null,null,null,null,null,null,null,null,null,null,null,null,null,null,null,null,null,null,null,null,null,null,null,null,null,null,null,null,null,null,null,null,null,"€"]
[]
["Gemeinde/n:",null,null,null,null,null,null,null,null,null,null,null,null,null,null,null,null,null,null,null,null,null,null,null,null,null,null,null,null,null,null,null,null,null,null,null,"€"]
[]
["Mit meiner Unterschrift bestätige ich, "]
["     -) dass ich alle Angaben im Zahlungsantrag und sämtlichen Beilagen mit bestem Wissen gemacht habe,"]
["     -) Abrechnungsbelege nicht in unzulässiger Weise zur Abrechnung einer bei einer anderen Abwicklungsstelle\n         beantragten Förderung eingebracht habe oder einreichen werde (unzulässige Mehrfachförderung)"]
["     -) die Beantragung einer mit der LE-Projektförderung kumulierbaren Förderung bei einer anderen Förderungs-\n         abwicklungsstelle der Bewilligenden Stelle gemeldet habe oder melden werde,"]
["     -) allen Verpflichtungen gegenüber der Bewilligenden Stelle (z.B. Meldeverpflichtung) nachgekommen bin,\n"]
["     -) dass alle Personen, deren Daten im Rahmen dieses Zahlungsantrages offengelegt wurden, \n        von mir darüber wurden, dass eine Verarbeitung ihrer Daten durch die Zahlstelle und Bewilligende Stelle für Zwecke \n        der Abwicklung und Kontrolle der Förderung erfolgt\n"]
["und ersuche um Auszahlung des entsprechenden Förderungsbetrages."]
[]
[]
["Ort, Datum",null,null,null,null,null,null,null,"Name in Blockbuchstaben",null,null,null,null,null,null,null,null,null,null,null,null,null,null,null,"Unterschrift bzw. firmenmäßige Zeichnung"]
[]
[]
[]
[]
["Liste verfügbarer Vorhabensarten (für Pop-Up-Menu)"]
["Bitte auswählen"]
["M 1 A) - Wissenstransfer und Informationsmaßnahmen in der Land- und Forstwirtschaft - Landwirtschaft"]
["M 1 B) - Wissenstransfer und Informationsmaßnahmen in der Land- und Forstwirtschaft - Forstwirtschaft"]
[" - "]
["2.1.1. A) - Inanspruchnahme von Beratungsleistungen - Landwirtschaft"]
["2.1.1. B) - Inanspruchnahme von Beratungsleistungen - Forstwirtschaft"]
["2.1.1. C) - Inanspruchnahme von Beratungsleistungen - KMU"]
["2.3.1. - Ausbildung von BeraterInnen"]
[" - "]
["3.1.1. - Teilnahme der BewirtschafterInnen landwirtschaftlicher Betriebe an Lebensmittelqualitätsregelungen"]
["3.2.1. - Informations- und Absatzförderungsmaßnahmen"]
[" - "]
["4.1.1. - Investitionen in die landwirtschaftliche Erzeugung"]
["4.2.1. A) - Verarbeitung, Vermarktung und Entwicklung landwirtschaftlicher Erzeugnisse (Bewilligung AWS)"]
["4.2.1. B) - Verarbeitung, Vermarktung und Entwicklung landwirtschaftlicher Erzeugnisse (Bewilligung Bundesländer)"]
["4.3.1. - Investitionen in überbetriebliche Bewässerungsinfrastruktur"]
["4.3.2. - Investitionen in die Infrastruktur für die Entwicklung, Modernisierung und Anpassung der Forstwirtschaft"]
["4.4.1. - Nichtproduktive Investitionen – Ökologische Verbesserung von Gewässern in landwirtschaftlich geprägten Regionen"]
["4.4.2. - Nichtproduktive Investitionen – Investitionen zur Stabilisierung von Rutschungen"]
["4.4.3. - Nichtproduktive Investitionen – Ökologische Agrarinfrastruktur zur Flurentwicklung"]
[" - "]
["6.1.1. - Existenzgründungsbeihilfen für JunglandwirtInnen"]
["6.4.1. - Diversifizierung hin zu nichtlandwirtschaftlichen Tätigkeiten"]
["6.4.2. - Diversifizierung lw. und fw. Betriebe durch Energie aus nachwachsenden Rohstoffen sowie Energiedienstleistungen"]
["6.4.3. - Photovoltaik in der Landwirtschaft"]
["6.4.4. - Gründung von innovativen Kleinunternehmen im ländlichen Raum"]
["6.4.5. - Förderung von Nahversorgungsbetrieben einschließlich gewerblicher Beherbergungs- und Gastronomiebetriebe"]
[" - "]
["7.1.1. A) - Pläne und Entwicklungskonzepte zur Erhaltung des natürlichen Erbes - Naturschutz -Bund"]
["7.1.1. A) - Pläne und Entwicklungskonzepte zur Erhaltung des natürlichen Erbes - Naturschutz - Länder"]
["7.1.1. B) - Pläne und Entwicklungskonzepte zur Erhaltung des natürlichen Erbes - Nationalparks"]
["7.1.2. - Pläne und Entwicklungskonzepte zur Dorferneuerung"]
["7.1.3. - Lokale Agenda 21 - Bund"]
["7.1.3. - Lokale Agenda 21 - Länder"]
["7.2.1. - Ländliche Verkehrsinfrastruktur"]
["7.2.2. - Investitionen in erneuerbare Energien"]
["7.2.3. - Umsetzung von Klima- und Energieprojekten auf lokaler Ebene"]
["7.3.1. - Breitbandinfrastruktur in ländlichen Gebieten"]
["7.4.1. A) - Soziale Angelegenheiten - BMASK"]
["7.4.1. B) - Soziale Angelegenheiten - BMG"]
["7.4.2. - Klimafreundliche Mobilitätslösungen (klimaaktiv mobil)"]
["7.5.1. A) - Investitionen in kleine touristische Infrastruktur - BMWFW"]
["7.5.1. B) - Investitionen in kleine touristische Infrastruktur - Forst"]
["7.5.1. C) - Investitionen in kleine touristische Infrastruktur - Länder"]
["7.6.1. A) - Studien und Investitionen zur Erhaltung, Wiederherstellung und Verbesserung des natürlichen Erbes - Naturschutz - Bund "]
["7.6.1. A) - Studien und Investitionen zur Erhaltung, Wiederherstellung und Verbesserung des natürlichen Erbes - Naturschutz - Länder"]
["7.6.1. B) - Studien und Investitionen zur Erhaltung, Wiederherstellung und Verbesserung des natürlichen Erbes - Nationalparks"]
["7.6.1. C) - Studien und Investitionen zur Erhaltung, Wiederherstellung und Verbesserung des natürlichen Erbes - Forst"]
["7.6.2. - Umsetzung von Plänen zur Dorferneuerung und Gemeindeentwicklung"]
["7.6.3. - Erhaltung und Entwicklung der Kulturlandschaft"]
["7.6.4. - Überbetriebliche Maßnahmen für die Bereiche Wald und Schutz vor Naturgefahren"]
["7.6.5. - Stärkung der Potenziale des alpinen ländlichen Raums"]
[" - "]
["8.1.1. - Aufforstung und Anlage von Wäldern"]
["8.4.1. - Vorbeugung von Schäden und Wiederherstellung von Wäldern nach Naturkatastrophen und Katastrophenereignissen - Forstschutz"]
["8.5.1. - Investitionen zur Stärkung von Resistenz und ökologischem Wert des Waldes - Öffentlicher Wert & Schutz vor Naturgefahren"]
["8.5.2. - Investitionen zur Stärkung von Resistenz und ökologischem Wert des Waldes - Genetische Ressourcen"]
["8.5.3. - Investitionen zur Stärkung des ökologischen Werts der Waldökosysteme - Wald-Ökologie-Programm "]
["8.6.1. - Investitionen in Forsttechniken, Verarbeitung, Mobilisierung und Vermarktung forstwirtschaftlicher Erzeugnisse"]
["8.6.2. - Erstellung von waldbezogenen Plänen auf betrieblicher Ebene"]
[" - "]
["15.1.1. - Erhaltung von ökologisch wertvollen/seltenen Waldflächen /-gesellschaften"]
["15.2.1. - Erhaltung und Verbesserung der genetischen Ressourcen des Waldes"]
[" - "]
["16.01.1. - Unterstützung beim Aufbau & Betrieb operationeller Gruppen der EIP für lw. Produktivität & Nachhaltigkeit"]
["16.02.1. - Unterstützung bei der Entwicklung neuer Erzeugnisse, Verfahren & Technologien der Land-, Ernährungs- & Forstwirtschaft"]
["16.02.2. A) - Unterstützung bei der Entwicklung von innovativen Pilotprojekten im Tourismus - BMWFW"]
["16.02.2. B) - Unterstützung bei der Entwicklung von innovativen Pilotprojekten im Tourismus - Länder"]
["16.03.1. A) - Zusammenarbeit von kleinen WirtschaftsteilnehmerInnen - Arbeitsabläufe, Ressourcennutzung und Tourismusdienstleistungen "]
["16.03.1. A) - Zusammenarbeit von kleinen WirtschaftsteilnehmerInnen - Arbeitsabläufe, Ressourcennutzung und Tourismusdienstleistungen - BMLFUW"]
["16.03.1. B) - Zusammenarbeit von kleinen WirtschaftsteilnehmerInnen - Arbeitsabläufe, Ressourcennutzung und Tourismusdienstleistungen - BMWFW"]
["16.03.1. C) - Zusammenarbeit von kleinen WirtschaftsteilnehmerInnen - Arbeitsabläufe, Ressourcennutzung und Tourismusdienstleistungen - Länder"]
["16.03.2. - Zusammenarbeit von Kleinstunternehmen im ländlichen Raum"]
["16.04.1. - Schaffung und Entwicklung von kurzen Versorgungsketten und lokalen Märkten sowie unterstützende Absatzförderung "]
["16.05.1. - Stärkung der horizontalen und vertikalen Zusammenarbeit zwischen AkteurInnen im forst- und wasserwirtschaftlichen Sektor"]
["16.05.2. A) - Stärkung der Zusammenarbeit von AkteurInnen und Strukturen zur Erhaltung des natürlichen Erbes & des Umweltschutzes - Naturschutz"]
["16.05.2. A) - Stärkung der Zusammenarbeit von AkteurInnen und Strukturen zur Erhaltung des natürlichen Erbes & des Umweltschutzes - Naturschutz - Länder"]
["16.05.2. B) - Stärkung der Zusammenarbeit von AkteurInnen und Strukturen zur Erhaltung des natürlichen Erbes & des Umweltschutzes - Umweltschutz"]
["16.05.2. C) - Stärkung der Zusammenarbeit von AkteurInnen und Strukturen zur Erhaltung des natürlichen Erbes & des Umweltschutzes - Nationalparks"]
["16.08.1. - Waldbezogene Pläne auf überbetrieblicher Ebene"]
["16.09.1. - Förderung horizontaler & vertikaler Zusammenarbeit lw. & fw. AkteurInnen zur Schaffung & Entwicklung v. Sozialleistungen - BMLFUW"]
["16.10.1. - Einrichtung und Betrieb von Clustern - BMLFUW"]
["16.10.2. - Einrichtung und Betrieb von Netzwerken - BMLFUW"]
["16.10.3. - Zusammenarbeit: Erzeugergemeinschaften /-organisationen, Genossenschaften und Branchenverbände - BMLFUW"]
[" - "]
["19.1.1. - Erstellung der lokalen Entwicklungsstrategie - Länder"]
["19.1.1. - Erstellung der lokalen Entwicklungsstrategie"]
["19.2.1. - Umsetzung der lokalen Entwicklungsstrategie - Länder"]
["19.2.1. - Umsetzung der lokalen Entwicklungsstrategie"]
["19.3.1. - Umsetzung von nationalen oder transnationalen Kooperationsprojekten - Länder"]
["19.3.1. - Umsetzung von nationalen oder transnationalen Kooperationsprojekten"]
["19.4.1. - Laufende Kosten des LAG-Managements und Sensibilisierung - Länder"]
["19.4.1. - Laufende Kosten des LAG-Managements und Sensibilisierung"]
[" - "]
["20.1. - Technische Hilfe (außer Netzwerk)"]
["20.2. - Technische Hilfe - Netzwerk"]

{"sheet":"TEMPLATE Zahlungsantrag","index":2,"n_rows":233,"n_cols":41,"rows_kept":233,"cut":false,"hidden":true,"merged":[[34,8,34,24],[36,8,36,24],[36,26,36,30],[34,26,34,30],[36,1,36,7],[98,26,98,27],[48,0,48,7],[48,8,48,24],[39,1,39,7],[39,8,39,38],[44,1,44,7],[46,8,46,38],[48,26,48,30],[46,1,46,7],[41,8,41,24],[41,26,41,31],[44,8,44,38],[41,32,41,38],[41,1,41,7],[42,0,43,38],[58,0,58,11],[62,0,62,38],[56,0,56,11],[96,0,96,6],[96,7,96,24],[50,26,50,30],[92,30,92,31],[60,12,60,38],[88,35,88,36],[78,30,78,31],[78,0,78,19],[78,24,78,28],[74,2,74,9],[82,26,82,27],[80,26,80,27],[52,0,52,11],[82,35,82,36],[80,34,80,37],[72,0,72,38],[74,20,74,27],[76,26,76,27],[76,29,76,34],[76,2,76,7],[76,17,76,18],[74,11,74,18],[88,26,88,27],[94,35,94,36],[88,30,88,31],[94,30,94,31],[92,26,92,27],[94,26,94,27],[88,0,88,24],[92,0,92,24],[90,0,90,24],[94,0,94,24],[84,26,84,27],[84,30,84,31],[86,0,86,24],[76,35,76,36],[78,32,78,36],[76,20,76,25],[104,30,104,31],[56,12,56,38],[68,0,68,6],[26,0,26,38],[106,0,106,24],[106,26,106,27],[100,26,100,27],[102,26,102,27],[104,26,104,27],[106,35,106,36],[98,29,98,32],[74,29,74,36],[82,0,82,24],[80,0,80,24],[86,30,86,31],[90,30,90,31],[90,26,90,27],[52,12,52,38],[54,12,54,38],[84,0,84,24],[92,35,92,36],[117,28,117,35],[100,30,100,31],[100,35,100,36],[102,35,102,36],[98,34,98,37],[104,35,104,36],[102,30,102,31],[106,30,106,31],[108,7,108,24],[102,0,102,24],[98,0,98,24],[108,0,108,6],[100,0,100,24],[104,0,104,24],[110,28,110,37],[110,0,110,24],[117,0,117,6],[117,7,117,24],[113,0,115,24],[112,0,112,38],[110,26,110,27],[131,0,131,6],[131,8,131,22],[68,22,68,30],[125,0,125,38],[126,0,126,38],[114,26,115,37],[119,0,119,6],[84,35,84,36],[131,24,131,38],[76,8,76,9],[130,24,130,38],[124,0,124,38],[130,8,130,22],[128,0,128,38],[130,0,130,6],[127,0,127,38],[82,30,82,31],[80,29,80,32],[76,11,76,16],[78,22,78,23],[123,0,123,38],[121,0,121,6],[121,7,121,24],[119,28,119,35],[119,7,119,24],[121,28,121,35],[4,9,4,12],[6,0,6,38],[8,0,8,38],[7,0,7,38],[0,13,4,38],[0,0,4,8],[0,9,0,12],[1,9,1,12],[2,9,2,12],[3,9,3,12],[10,0,10,22],[10,24,10,38],[21,0,21,38],[24,12,24,38],[13,0,13,15],[17,15,17,17],[11,0,11,22],[15,8,15,10],[19,0,19,38],[15,0,15,7],[15,13,15,20],[11,24,17,38],[17,0,17,13],[33,0,33,38],[31,1,31,7],[70,0,70,38],[54,0,54,11],[60,0,60,11],[68,7,68,20],[50,8,50,24],[34,1,34,7],[66,0,66,4],[50,0,50,7],[31,26,31,30],[22,0,22,38],[28,23,28,30],[28,0,28,11],[31,8,31,24],[30,0,30,38],[24,0,24,11],[28,12,28,21],[28,31,28,38],[58,12,58,38],[64,0,64,4],[68,31,68,38],[38,0,38,38],[88,88,88,89],[90,79,90,80],[90,83,90,84],[90,88,90,89],[88,83,88,84],[88,79,88,80],[86,35,86,36],[86,26,86,27],[90,35,90,36]]}
[null,null,null,null,null,null,null,null,null,"Agrarmarkt Austria"]
[null,null,null,null,null,null,null,null,null,"Dresdner Straße 70",null,null,null,null,null,null,null,null,null,null,null,null,null,null,null,null,null,null,null,null,null,null,null,null,null,null,null,null,null,null,{"$f":"VLOOKUP(PaymAppl_IntentCode,ProjectTypeSponsors,2)","v":"BMLFUW/LE1420/LD/EU"}]
[null,null,null,null,null,null,null,null,null,"A-1200 Wien",null,null,null,null,null,null,null,null,null,null,null,null,null,null,null,null,null,null,null,null,null,null,null,null,null,null,null,null,null,null,"BMLFUW/LE1420/LD/EU"]
[null,null,null,null,null,null,null,null,null,"www.ama.at",null,null,null,null,null,null,null,null,null,null,null,null,null,null,null,null,null,null,null,null,null,null,null,null,null,null,null,null,null,null,10]
[null,null,null,null,null,null,null,null,null,"DVR: 0719838"]
[]
["Zahlungsantrag"]
["zur Auszahlung einer Förderung eines Vorhabens  "]
["im Rahmen des Österreichischen Programms für ländliche Entwicklung 2014 - 2020"]
[]
["Antragsnummer des betroffenen Vorhabens",null,null,null,null,null,null,null,null,null,null,null,null,null,null,null,null,null,null,null,null,null,null,null,"Eingangsvermerk (Einreich-/Bewilligende Stelle)"]
[]
[]
["Bei vorgelegter Abrechnung handelt es sich um die"]
[]
[]
[]
["Der Gebietskörperschaftsanteil beträgt in %"]
[]
["Vorhaben"]
[]
["Code / Vorhabensart"]
["Bitte auswählen"]
[]
["Kurzbezeichnung des Vorhabens:"]
[]
["Angaben zum Förderungswerber/zur Förderungswerberin "]
[]
["Betriebs- bzw. Klientennummer:",null,null,null,null,null,null,null,null,null,null,null,null,null,null,null,null,null,null,null,null,null,null,"Vorsteuerabzugsberechtigt",null,null,null,null,null,null,null,null,null,null,null,null,null,null,null,null,"Ja"]
[]
[]
[null,"Titel, Name, Vorname",null,null,null,null,null,null,null,null,null,null,null,null,null,null,null,null,null,null,null,null,null,null,null,null,"Geburtsdatum"]
[]
[]
[null,"Titel, Name, Vorname",null,null,null,null,null,null,null,null,null,null,null,null,null,null,null,null,null,null,null,null,null,null,null,null,"Geburtsdatum"]
[]
[null,"Titel, Name, Vorname",null,null,null,null,null,null,null,null,null,null,null,null,null,null,null,null,null,null,null,null,null,null,null,null,"Geburtsdatum"]
[]
["  "]
[null,"Name/Unternehmen"]
[]
[null,"Gesellschaftsform",null,null,null,null,null,null,null,null,null,null,null,null,null,null,null,null,null,null,null,null,null,null,null,null,"ZVR/FB-Nr./GKZ"]
[]
[]
[null,"Name"]
[]
[null,"Gesellschaftsform"]
[]
["Vertretungsbefugte/r",null,null,null,null,null,null,null,null,null,null,null,null,null,null,null,null,null,null,null,null,null,null,null,null,null,"Geburtsdatum"]
[]
["Vertretungsbefugte/r",null,null,null,null,null,null,null,null,null,null,null,null,null,null,null,null,null,null,null,null,null,null,null,null,null,"Geburtsdatum"]
[]
["Zustelladresse: Straße, Hausnr."]
[]
["Zustelladresse: PLZ, Ort"]
[]
["Betriebsadresse: Straße, Hausnr."]
[]
["Betriebsadresse: PLZ, Ort"]
[]
["Mobil-,Telefonnr./Email-/Internetadresse"]
[]
["Bankverbindung"]
[]
["BIC"]
[]
["IBAN"]
[]
["Förderungswerber/in",null,null,null,null,null,null,{"$f":"IF(IsEmptyString(PaymAppl_IndividualName),\"\",PaymAppl_IndividualName)","v":""},null,null,null,null,null,null,null,null,null,null,null,null,null,null,"Betriebs-/Klientennummer",null,null,null,null,null,null,null,null,{"$f":"IF(ISBLANK(M29),\"\",M29)","v":""}]
[]
["Zahlungsantrag (Seite 2)"]
[]
["eingereichte Kosten"]
[]
[null,null,"Belegbetrag brutto",null,null,null,null,null,null,null,null,"Belegbetrag netto",null,null,null,null,null,null,null,null,"eingereichte Kosten",null,null,null,null,null,null,null,null,"Einnahmen"]
[]
[null,null,null,null,null,null,null,null,"€",null,null,null,null,null,null,null,null,"€",null,null,null,null,null,null,null,null,"€",null,null,null,null,null,null,null,null,"€"]
[]
["genehmigter Zeitraum für die Kostenanerkennung",null,null,null,null,null,null,null,null,null,null,null,null,null,null,null,null,null,null,null,null,null,"von",null,null,null,null,null,null,null,"bis"]
[]
["Allgemeine Beilagen",null,null,null,null,null,null,null,null,null,null,null,null,null,null,null,null,null,null,null,null,null,null,null,null,null,"liegt \nbei",null,null,"wird \nnachgereicht",null,null,null,null,"nicht \nerforderlich"]
[]
["Abrechnungsbelege (Rechnungen, Honorarnoten, Jahreslohnkonten etc.)"]
[]
["Belegaufstellung - Investitionen und Sachaufwand"]
[]
["Belegaufstellung - unbare Eigenleistungen (=unbare Sachleistungen) "]
[]
["Belegaufstellung Personalkosten"]
[]
["Zeitaufzeichnungen, Tätigkeitsbeschreibungen"]
[]
["Zahlungsnachweis/e"]
[]
["Nachweis über die Einhaltung der Publizitätskriterien"]
[]
["Sonstige Beilage(n):"]
[]
["Vorhabensspezifische Beilagen, die spätestens mit der Endabrechnung vorgelegt werden  müssen: ",null,null,null,null,null,null,null,null,null,null,null,null,null,null,null,null,null,null,null,null,null,null,null,null,null,"liegt \nbei",null,null,"wird \nnachgereicht",null,null,null,null,"nicht \nerforderlich"]
[]
["Benutzungsbewilligung"]
[]
["Endbericht"]
[]
["Versichungsnachweis bei Investitionen in unbewegl. Investitionsgegenstände"]
[]
["Evaluierungsdatenblatt"]
[]
["Sonstige Beilage(n):"]
[]
["Angaben zu anderen Förderungen/Zuschüssen",null,null,null,null,null,null,null,null,null,null,null,null,null,null,null,null,null,null,null,null,null,null,null,null,null,null,null,"Keine weitere/n Förderung/en \nbzw. Zuschüsse"]
[]
["Im Rahmen d. Projektes wurde bei folgenden anderen Förderstellen um eine Förderung bzw. einen Zuschuss angesucht:"]
["Geben Sie hier die entsprechende Stelle sowie die/den beantragte(n)/genehmigten(n)/erhaltene(n) Förderung/Zuschuss an!"]
[null,null,null,null,null,null,null,null,null,null,null,null,null,null,null,null,null,null,null,null,null,null,null,null,null,null,"Förderung/Zuschuss im Ausmaß von "]
[]
[]
["Bund:",null,null,null,null,null,null,null,null,null,null,null,null,null,null,null,null,null,null,null,null,null,null,null,null,null,null,null,null,null,null,null,null,null,null,null,"€"]
[]
["Land:",null,null,null,null,null,null,null,null,null,null,null,null,null,null,null,null,null,null,null,null,null,null,null,null,null,null,null,null,null,null,null,null,null,null,null,"€"]
[]
["Gemeinde/n:",null,null,null,null,null,null,null,null,null,null,null,null,null,null,null,null,null,null,null,null,null,null,null,null,null,null,null,null,null,null,null,null,null,null,null,"€"]
[]
["Mit meiner Unterschrift bestätige ich, "]
["     -) dass ich alle Angaben im Zahlungsantrag und sämtlichen Beilagen mit bestem Wissen gemacht habe,"]
["     -) Abrechnungsbelege nicht in unzulässiger Weise zur Abrechnung einer bei einer anderen Abwicklungsstelle\n         beantragten Förderung eingebracht habe oder einreichen werde (unzulässige Mehrfachförderung)"]
["     -) die Beantragung einer mit der LE-Projektförderung kumulierbaren Förderung bei einer anderen Förderungs-\n         abwicklungsstelle der Bewilligenden Stelle gemeldet habe oder melden werde,"]
["     -) allen Verpflichtungen gegenüber der Bewilligenden Stelle (z.B. Meldeverpflichtung) nachgekommen bin,\n"]
["und ersuche um Auszahlung des entsprechenden Förderungsbetrages."]
[]
[]
["Ort, Datum",null,null,null,null,null,null,null,"Name in Blockbuchstaben",null,null,null,null,null,null,null,null,null,null,null,null,null,null,null,"Unterschrift bzw. firmenmäßige Zeichnung"]
[]
[]
[]
[]
["Liste verfügbarer Vorhabensarten (für Pop-Up-Menu)"]
["Bitte auswählen"]
["M 1 A) - Wissenstransfer und Informationsmaßnahmen in der Land- und Forstwirtschaft - Landwirtschaft"]
["M 1 B) - Wissenstransfer und Informationsmaßnahmen in der Land- und Forstwirtschaft - Forstwirtschaft"]
[" - "]
["2.1.1. A) - Inanspruchnahme von Beratungsleistungen - Landwirtschaft"]
["2.1.1. B) - Inanspruchnahme von Beratungsleistungen - Forstwirtschaft"]
["2.1.1. C) - Inanspruchnahme von Beratungsleistungen - KMU"]
["2.3.1. - Ausbildung von BeraterInnen"]
[" - "]
["3.1.1. - Teilnahme der BewirtschafterInnen landwirtschaftlicher Betriebe an Lebensmittelqualitätsregelungen"]
["3.2.1. - Informations- und Absatzförderungsmaßnahmen"]
[" - "]
["4.1.1. - Investitionen in die landwirtschaftliche Erzeugung"]
["4.2.1. A) - Verarbeitung, Vermarktung und Entwicklung landwirtschaftlicher Erzeugnisse (Bewilligung AWS)"]
["4.2.1. B) - Verarbeitung, Vermarktung und Entwicklung landwirtschaftlicher Erzeugnisse (Bewilligung Bundesländer)"]
["4.3.1. - Investitionen in überbetriebliche Bewässerungsinfrastruktur"]
["4.3.2. - Investitionen in die Infrastruktur für die Entwicklung, Modernisierung und Anpassung der Forstwirtschaft"]
["4.4.1. - Nichtproduktive Investitionen – Ökologische Verbesserung von Gewässern in landwirtschaftlich geprägten Regionen"]
["4.4.2. - Nichtproduktive Investitionen – Investitionen zur Stabilisierung von Rutschungen"]
["4.4.3. - Nichtproduktive Investitionen – Ökologische Agrarinfrastruktur zur Flurentwicklung"]
[" - "]
["6.1.1. - Existenzgründungsbeihilfen für JunglandwirtInnen"]
["6.4.1. - Diversifizierung hin zu nichtlandwirtschaftlichen Tätigkeiten"]
["6.4.2. - Diversifizierung lw. und fw. Betriebe durch Energie aus nachwachsenden Rohstoffen sowie Energiedienstleistungen"]
["6.4.3. - Photovoltaik in der Landwirtschaft"]
["6.4.4. - Gründung von innovativen Kleinunternehmen im ländlichen Raum"]
["6.4.5. - Förderung von Nahversorgungsbetrieben einschließlich gewerblicher Beherbergungs- und Gastronomiebetriebe"]
[" - "]
["7.1.1. A) - Pläne und Entwicklungskonzepte zur Erhaltung des natürlichen Erbes - Naturschutz -Bund"]
["7.1.1. A) - Pläne und Entwicklungskonzepte zur Erhaltung des natürlichen Erbes - Naturschutz - Länder"]
["7.1.1. B) - Pläne und Entwicklungskonzepte zur Erhaltung des natürlichen Erbes - Nationalparks"]
["7.1.2. - Pläne und Entwicklungskonzepte zur Dorferneuerung"]
["7.1.3. - Lokale Agenda 21 - Bund"]
["7.1.3. - Lokale Agenda 21 - Länder"]
["7.2.1. - Ländliche Verkehrsinfrastruktur"]
["7.2.2. - Investitionen in erneuerbare Energien"]
["7.2.3. - Umsetzung von Klima- und Energieprojekten auf lokaler Ebene"]
["7.3.1. - Breitbandinfrastruktur in ländlichen Gebieten"]
["7.4.1. A) - Soziale Angelegenheiten - BMASK"]
["7.4.1. B) - Soziale Angelegenheiten - BMG"]
["7.4.2. - Klimafreundliche Mobilitätslösungen (klimaaktiv mobil)"]
["7.5.1. A) - Investitionen in kleine touristische Infrastruktur - BMWFW"]
["7.5.1. B) - Investitionen in kleine touristische Infrastruktur - Forst"]
["7.5.1. C) - Investitionen in kleine touristische Infrastruktur - Länder"]
["7.6.1. A) - Studien und Investitionen zur Erhaltung, Wiederherstellung und Verbesserung des natürlichen Erbes - Naturschutz - Bund "]
["7.6.1. A) - Studien und Investitionen zur Erhaltung, Wiederherstellung und Verbesserung des natürlichen Erbes - Naturschutz - Länder"]
["7.6.1. B) - Studien und Investitionen zur Erhaltung, Wiederherstellung und Verbesserung des natürlichen Erbes - Nationalparks"]
["7.6.1. C) - Studien und Investitionen zur Erhaltung, Wiederherstellung und Verbesserung des natürlichen Erbes - Forst"]
["7.6.2. - Umsetzung von Plänen zur Dorferneuerung und Gemeindeentwicklung"]
["7.6.3. - Erhaltung und Entwicklung der Kulturlandschaft"]
["7.6.4. - Überbetriebliche Maßnahmen für die Bereiche Wald und Schutz vor Naturgefahren"]
["7.6.5. - Stärkung der Potenziale des alpinen ländlichen Raums"]
[" - "]
["8.1.1. - Aufforstung und Anlage von Wäldern"]
["8.4.1. - Vorbeugung von Schäden und Wiederherstellung von Wäldern nach Naturkatastrophen und Katastrophenereignissen - Forstschutz"]
["8.5.1. - Investitionen zur Stärkung von Resistenz und ökologischem Wert des Waldes - Öffentlicher Wert & Schutz vor Naturgefahren"]
["8.5.2. - Investitionen zur Stärkung von Resistenz und ökologischem Wert des Waldes - Genetische Ressourcen"]
["8.5.3. - Investitionen zur Stärkung des ökologischen Werts der Waldökosysteme - Wald-Ökologie-Programm "]
["8.6.1. - Investitionen in Forsttechniken, Verarbeitung, Mobilisierung und Vermarktung forstwirtschaftlicher Erzeugnisse"]
["8.6.2. - Erstellung von waldbezogenen Plänen auf betrieblicher Ebene"]
[" - "]
["15.1.1. - Erhaltung von ökologisch wertvollen/seltenen Waldflächen /-gesellschaften"]
["15.2.1. - Erhaltung und Verbesserung der genetischen Ressourcen des Waldes"]
[" - "]
["16.01.1. - Unterstützung beim Aufbau & Betrieb operationeller Gruppen der EIP für lw. Produktivität & Nachhaltigkeit"]
["16.02.1. - Unterstützung bei der Entwicklung neuer Erzeugnisse, Verfahren & Technologien der Land-, Ernährungs- & Forstwirtschaft"]
["16.02.2. A) - Unterstützung bei der Entwicklung von innovativen Pilotprojekten im Tourismus - BMWFW"]
["16.02.2. B) - Unterstützung bei der Entwicklung von innovativen Pilotprojekten im Tourismus - Länder"]
["16.03.1. A) - Zusammenarbeit von kleinen WirtschaftsteilnehmerInnen - Arbeitsabläufe, Ressourcennutzung und Tourismusdienstleistungen "]
["16.03.1. A) - Zusammenarbeit von kleinen WirtschaftsteilnehmerInnen - Arbeitsabläufe, Ressourcennutzung und Tourismusdienstleistungen - BMLFUW"]
["16.03.1. B) - Zusammenarbeit von kleinen WirtschaftsteilnehmerInnen - Arbeitsabläufe, Ressourcennutzung und Tourismusdienstleistungen - BMWFW"]
["16.03.1. C) - Zusammenarbeit von kleinen WirtschaftsteilnehmerInnen - Arbeitsabläufe, Ressourcennutzung und Tourismusdienstleistungen - Länder"]
["16.03.2. - Zusammenarbeit von Kleinstunternehmen im ländlichen Raum"]
["16.04.1. - Schaffung und Entwicklung von kurzen Versorgungsketten und lokalen Märkten sowie unterstützende Absatzförderung "]
["16.05.1. - Stärkung der horizontalen und vertikalen Zusammenarbeit zwischen AkteurInnen im forst- und wasserwirtschaftlichen Sektor"]
["16.05.2. A) - Stärkung der Zusammenarbeit von AkteurInnen und Strukturen zur Erhaltung des natürlichen Erbes & des Umweltschutzes - Naturschutz"]
["16.05.2. A) - Stärkung der Zusammenarbeit von AkteurInnen und Strukturen zur Erhaltung des natürlichen Erbes & des Umweltschutzes - Naturschutz - Länder"]
["16.05.2. B) - Stärkung der Zusammenarbeit von AkteurInnen und Strukturen zur Erhaltung des natürlichen Erbes & des Umweltschutzes - Umweltschutz"]
["16.05.2. C) - Stärkung der Zusammenarbeit von AkteurInnen und Strukturen zur Erhaltung des natürlichen Erbes & des Umweltschutzes - Nationalparks"]
["16.08.1. - Waldbezogene Pläne auf überbetrieblicher Ebene"]
["16.09.1. - Förderung horizontaler & vertikaler Zusammenarbeit lw. & fw. AkteurInnen zur Schaffung & Entwicklung v. Sozialleistungen - BMLFUW"]
["16.10.1. - Einrichtung und Betrieb von Clustern - BMLFUW"]
["16.10.2. - Einrichtung und Betrieb von Netzwerken - BMLFUW"]
["16.10.3. - Zusammenarbeit: Erzeugergemeinschaften /-organisationen, Genossenschaften und Branchenverbände - BMLFUW"]
[" - "]
["19.1.1. - Erstellung der lokalen Entwicklungsstrategie - Länder"]
["19.1.1. - Erstellung der lokalen Entwicklungsstrategie"]
["19.2.1. - Umsetzung der lokalen Entwicklungsstrategie - Länder"]
["19.2.1. - Umsetzung der lokalen Entwicklungsstrategie"]
["19.3.1. - Umsetzung von nationalen oder transnationalen Kooperationsprojekten - Länder"]
["19.3.1. - Umsetzung von nationalen oder transnationalen Kooperationsprojekten"]
["19.4.1. - Laufende Kosten des LAG-Managements und Sensibilisierung - Länder"]
["19.4.1. - Laufende Kosten des LAG-Managements und Sensibilisierung"]
[" - "]
["20.1. - Technische Hilfe (außer Netzwerk)"]
["20.2. - Technische Hilfe - Netzwerk"]

{"sheet":"TEMPLATE Fördergeber","index":3,"n_rows":87,"n_cols":2,"rows_kept":87,"cut":false,"hidden":true,"merged":[]}
["Vorhabensart (alphabet. Sortiert)","Fördergeber"]
[" - "," - "]
["15.1.1. - Erhaltung von ökologisch wertvollen/seltenen Waldflächen /-gesellschaften","BMLFUW/LE1420/LD/EU"]
["15.2.1. - Erhaltung und Verbesserung der genetischen Ressourcen des Waldes","BMLFUW/LE1420/LD/EU"]
["16.01.1. - Unterstützung beim Aufbau & Betrieb operationeller Gruppen der EIP für lw. Produktivität & Nachhaltigkeit","BMLFUW/LE1420/LD/EU"]
["16.02.1. - Unterstützung bei der Entwicklung neuer Erzeugnisse, Verfahren & Technologien der Land-, Ernährungs- & Forstwirtschaft","BMLFUW/LE1420/LD/EU"]
["16.02.2. A) - Unterstützung bei der Entwicklung von innovativen Pilotprojekten im Tourismus - BMWFW","BMWFW/LE/EU"]
["16.02.2. B) - Unterstützung bei der Entwicklung von innovativen Pilotprojekten im Tourismus - Länder","LD/LE1420/EU"]
["16.03.1. A) - Zusammenarbeit von kleinen WirtschaftsteilnehmerInnen - Arbeitsabläufe, Ressourcennutzung und Tourismusdienstleistungen ","BMLFUW/LE1420/LD/EU"]
["16.03.1. A) - Zusammenarbeit von kleinen WirtschaftsteilnehmerInnen - Arbeitsabläufe, Ressourcennutzung und Tourismusdienstleistungen - BMLFUW","BMLFUW/LE1420/EU"]
["16.03.1. B) - Zusammenarbeit von kleinen WirtschaftsteilnehmerInnen - Arbeitsabläufe, Ressourcennutzung und Tourismusdienstleistungen - BMWFW","BMWFW/LE/EU"]
["16.03.1. C) - Zusammenarbeit von kleinen WirtschaftsteilnehmerInnen - Arbeitsabläufe, Ressourcennutzung und Tourismusdienstleistungen - Länder","LD/LE1420/EU"]
["16.03.2. - Zusammenarbeit von Kleinstunternehmen im ländlichen Raum","BMWFW/LE/EU"]
["16.04.1. - Schaffung und Entwicklung von kurzen Versorgungsketten und lokalen Märkten sowie unterstützende Absatzförderung ","BMLFUW/LE1420/LD/EU"]
["16.05.1. - Stärkung der horizontalen und vertikalen Zusammenarbeit zwischen AkteurInnen im forst- und wasserwirtschaftlichen Sektor","BMLFUW/LE1420/LD/EU"]
["16.05.2. A) - Stärkung der Zusammenarbeit von AkteurInnen und Strukturen zur Erhaltung des natürlichen Erbes & des Umweltschutzes - Naturschutz","BMLFUW/LE1420/EU"]
["16.05.2. A) - Stärkung der Zusammenarbeit von AkteurInnen und Strukturen zur Erhaltung des natürlichen Erbes & des Umweltschutzes - Naturschutz - Länder","LD/LE1420/EU"]
["16.05.2. B) - Stärkung der Zusammenarbeit von AkteurInnen und Strukturen zur Erhaltung des natürlichen Erbes & des Umweltschutzes - Umweltschutz","BMLFUW/LE1420/EU"]
["16.05.2. C) - Stärkung der Zusammenarbeit von AkteurInnen und Strukturen zur Erhaltung des natürlichen Erbes & des Umweltschutzes - Nationalparks","BMLFUW/LE1420/EU"]
["16.08.1. - Waldbezogene Pläne auf überbetrieblicher Ebene","BMLFUW/LE1420/LD/EU"]
["16.09.1. - Förderung horizontaler & vertikaler Zusammenarbeit lw. & fw. AkteurInnen zur Schaffung & Entwicklung v. Sozialleistungen - BMLFUW","BMLFUW/LE1420/LD/EU"]
["16.10.1. - Einrichtung und Betrieb von Clustern - BMLFUW","BMLFUW/LE1420/LD/EU"]
["16.10.2. - Einrichtung und Betrieb von Netzwerken - BMLFUW","BMLFUW/LE1420/LD/EU"]
["16.10.3. - Zusammenarbeit: Erzeugergemeinschaften /-organisationen, Genossenschaften und Branchenverbände - BMLFUW","BMLFUW/LE1420/LD/EU"]
["19.1.1. - Erstellung der lokalen Entwicklungsstrategie","BMLFUW/LE1420/LD/EU"]
["19.1.1. - Erstellung der lokalen Entwicklungsstrategie - Länder","LD/LE1420/EU"]
["19.2.1. - Umsetzung der lokalen Entwicklungsstrategie","BMLFUW/LE1420/LD/EU"]
["19.2.1. - Umsetzung der lokalen Entwicklungsstrategie - Länder","LD/LE1420/EU"]
["19.3.1. - Umsetzung von nationalen oder transnationalen Kooperationsprojekten","BMLFUW/LE1420/LD/EU"]
["19.3.1. - Umsetzung von nationalen oder transnationalen Kooperationsprojekten - Länder","LD/LE1420/EU"]
["19.4.1. - Laufende Kosten des LAG-Managements und Sensibilisierung","BMLFUW/LE1420/LD/EU"]
["19.4.1. - Laufende Kosten des LAG-Managements und Sensibilisierung - Länder","LD/LE1420/EU"]
["2.1.1. A) - Inanspruchnahme von Beratungsleistungen - Landwirtschaft","BMLFUW/LE1420/LD/EU"]
["2.1.1. B) - Inanspruchnahme von Beratungsleistungen - Forstwirtschaft","BMLFUW/LE1420/LD/EU"]
["2.1.1. C) - Inanspruchnahme von Beratungsleistungen - KMU","LD/LE1420/EU"]
["2.3.1. - Ausbildung von BeraterInnen","BMLFUW/LE1420/LD/EU"]
["20.1. - Technische Hilfe (außer Netzwerk)","BMLFUW/LE1420/LD/EU"]
["20.2. - Technische Hilfe - Netzwerk","BMLFUW/LE1420/LD/EU"]
["3.1.1. - Teilnahme der BewirtschafterInnen landwirtschaftlicher Betriebe an Lebensmittelqualitätsregelungen","BMLFUW/LE1420/LD/EU"]
["3.2.1. - Informations- und Absatzförderungsmaßnahmen","BMLFUW/LE1420/LD/EU"]
["4.1.1. - Investitionen in die landwirtschaftliche Erzeugung","BMLFUW/LE1420/LD/EU"]
["4.2.1. A) - Verarbeitung, Vermarktung und Entwicklung landwirtschaftlicher Erzeugnisse (Bewilligung AWS)","BMLFUW/LE1420/LD/EU"]
["4.2.1. B) - Verarbeitung, Vermarktung und Entwicklung landwirtschaftlicher Erzeugnisse (Bewilligung Bundesländer)","BMLFUW/LE1420/LD/EU"]
["4.3.1. - Investitionen in überbetriebliche Bewässerungsinfrastruktur","BMLFUW/LE1420/LD/EU"]
["4.3.2. - Investitionen in die Infrastruktur für die Entwicklung, Modernisierung und Anpassung der Forstwirtschaft","BMLFUW/LE1420/LD/EU"]
["4.4.1. - Nichtproduktive Investitionen – Ökologische Verbesserung von Gewässern in landwirtschaftlich geprägten Regionen","BMLFUW/LE1420/LD/EU"]
["4.4.2. - Nichtproduktive Investitionen – Investitionen zur Stabilisierung von Rutschungen","BMLFUW/LE1420/LD/EU"]
["4.4.3. - Nichtproduktive Investitionen – Ökologische Agrarinfrastruktur zur Flurentwicklung","BMLFUW/LE1420/LD/EU"]
["6.1.1. - Existenzgründungsbeihilfen für JunglandwirtInnen","BMLFUW/LE1420/LD/EU"]
["6.4.1. - Diversifizierung hin zu nichtlandwirtschaftlichen Tätigkeiten","BMLFUW/LE1420/LD/EU"]
["6.4.2. - Diversifizierung lw. und fw. Betriebe durch Energie aus nachwachsenden Rohstoffen sowie Energiedienstleistungen","BMLFUW/LE1420/LD/EU"]
["6.4.3. - Photovoltaik in der Landwirtschaft","BMLFUW/LE1420/EU"]
["6.4.4. - Gründung von innovativen Kleinunternehmen im ländlichen Raum","BMWFW/LE/EU"]
["6.4.5. - Förderung von Nahversorgungsbetrieben einschließlich gewerblicher Beherbergungs- und Gastronomiebetriebe","LD/LE1420/EU"]
["7.1.1. A) - Pläne und Entwicklungskonzepte zur Erhaltung des natürlichen Erbes - Naturschutz - Länder","LD/LE1420/EU"]
["7.1.1. A) - Pläne und Entwicklungskonzepte zur Erhaltung des natürlichen Erbes - Naturschutz - Bund","BMLFUW/LE1420/EU"]
["7.1.1. B) - Pläne und Entwicklungskonzepte zur Erhaltung des natürlichen Erbes - Nationalparks","BMLFUW/LE1420/EU"]
["7.1.2. - Pläne und Entwicklungskonzepte zur Dorferneuerung","LD/LE1420/EU"]
["7.1.3. - Lokale Agenda 21 - Bund","BMLFUW/LE1420/EU"]
["7.1.3. - Lokale Agenda 21 - Länder","LD/LE1420/EU"]
["7.2.1. - Ländliche Verkehrsinfrastruktur","BMLFUW/LE1420/LD/EU"]
["7.2.2. - Investitionen in erneuerbare Energien","BMLFUW/LE1420/EU"]
["7.2.3. - Umsetzung von Klima- und Energieprojekten auf lokaler Ebene","BMLFUW/LE1420/EU"]
["7.3.1. - Breitbandinfrastruktur in ländlichen Gebieten","BMVIT/LE/EU"]
["7.4.1. A) - Soziale Angelegenheiten - BMASK","LD/LE1420/EU"]
["7.4.1. B) - Soziale Angelegenheiten - BMG","LD/LE1420/EU"]
["7.4.2. - Klimafreundliche Mobilitätslösungen (klimaaktiv mobil)","BMLFUW/LE1420/EU"]
["7.5.1. A) - Investitionen in kleine touristische Infrastruktur - BMWFW","BMWFW/LE/EU"]
["7.5.1. B) - Investitionen in kleine touristische Infrastruktur - Forst","LD/LE1420/EU"]
["7.5.1. C) - Investitionen in kleine touristische Infrastruktur - Länder","LD/LE1420/EU"]
["7.6.1. A) - Studien und Investitionen zur Erhaltung, Wiederherstellung und Verbesserung des natürlichen Erbes - Naturschutz - Bund ","BMLFUW/LE1420/EU"]
["7.6.1. A) - Studien und Investitionen zur Erhaltung, Wiederherstellung und Verbesserung des natürlichen Erbes - Naturschutz - Länder","LD/LE1420/EU"]
["7.6.1. B) - Studien und Investitionen zur Erhaltung, Wiederherstellung und Verbesserung des natürlichen Erbes - Nationalparks","BMLFUW/LE1420/EU"]
["7.6.1. C) - Studien und Investitionen zur Erhaltung, Wiederherstellung und Verbesserung des natürlichen Erbes - Forst","BMLFUW/LE1420/EU"]
["7.6.2. - Umsetzung von Plänen zur Dorferneuerung und Gemeindeentwicklung","LD/LE1420/EU"]
["7.6.3. - Erhaltung und Entwicklung der Kulturlandschaft","BMLFUW/LE1420/LD/EU"]
["7.6.4. - Überbetriebliche Maßnahmen für die Bereiche Wald und Schutz vor Naturgefahren","BMLFUW/LE1420/LD/EU"]
["7.6.5. - Stärkung der Potenziale des alpinen ländlichen Raums","BMLFUW/LE1420/EU"]
["8.1.1. - Aufforstung und Anlage von Wäldern","BMLFUW/LE1420/LD/EU"]
["8.4.1. - Vorbeugung von Schäden und Wiederherstellung von Wäldern nach Naturkatastrophen und Katastrophenereignissen - Forstschutz","BMLFUW/LE1420/LD/EU"]
["8.5.1. - Investitionen zur Stärkung von Resistenz und ökologischem Wert des Waldes - Öffentlicher Wert & Schutz vor Naturgefahren","BMLFUW/LE1420/LD/EU"]
["8.5.2. - Investitionen zur Stärkung von Resistenz und ökologischem Wert des Waldes - Genetische Ressourcen","BMLFUW/LE1420/LD/EU"]
["8.5.3. - Investitionen zur Stärkung des ökologischen Werts der Waldökosysteme - Wald-Ökologie-Programm ","BMLFUW/LE1420/LD/EU"]
["8.6.1. - Investitionen in Forsttechniken, Verarbeitung, Mobilisierung und Vermarktung forstwirtschaftlicher Erzeugnisse","BMLFUW/LE1420/LD/EU"]
["8.6.2. - Erstellung von waldbezogenen Plänen auf betrieblicher Ebene","BMLFUW/LE1420/LD/EU"]
["M 1 A) - Wissenstransfer und Informationsmaßnahmen in der Land- und Forstwirtschaft - Landwirtschaft","BMLFUW/LE1420/LD/EU"]
["M 1 B) - Wissenstransfer und Informationsmaßnahmen in der Land- und Forstwirtschaft - Forstwirtschaft","BMLFUW/LE1420/LD/EU"]

{"sheet":"Auswahl Belegaufstellungen","index":4,"n_rows":36,"n_cols":4,"rows_kept":36,"cut":false,"hidden":true,"merged":[[29,1,29,3],[0,0,0,4],[2,2,2,3],[4,2,4,3],[6,2,6,3],[8,2,8,3]]}
["Zahlungsantrag - Stammdaten/Übersicht"]
[]
[null,"Betriebs-/Klientennummer: ",{"$f":"IF(IsEmptyString('Zahlungsantrag LEW14-20'!PaymAppl_ApplicantID),\"\",'Zahlungsantrag LEW14-20'!PaymAppl_ApplicantID)","v":""}]
[]
[null,"Förderungswerber: ",{"$f":"IF(IsEmptyString('Zahlungsantrag LEW14-20'!PaymAppl_ApplicantName),\"\",'Zahlungsantrag LEW14-20'!PaymAppl_ApplicantName)","v":""}]
[]
[null,"Antragsnummer: ",{"$f":"IF(IsEmptyString('Zahlungsantrag LEW14-20'!PaymAppl_ApplicationID),\"\",'Zahlungsantrag LEW14-20'!PaymAppl_ApplicationID)","v":""}]
[]
[null,"Vorsteuerabzugsberechtigung: ",{"$f":"IF(IsEmptyString('Zahlungsantrag LEW14-20'!PaymAppl_TaxDeduct),\"\",'Zahlungsantrag LEW14-20'!PaymAppl_TaxDeduct)","v":"Ja"}]
[]
[null,"Genehmigter Zeitraum für  ","Beginn","Ende"]
[null,"Kostenanerkennung: ",{"$f":"IF(IsEmptyString('Zahlungsantrag LEW14-20'!PaymAppl_SupportPeriodStart),\"\",'Zahlungsantrag LEW14-20'!PaymAppl_SupportPeriodStart)","v":""},{"$f":"IF(IsEmptyString('Zahlungsantrag LEW14-20'!PaymAppl_SupportPeriodEnd),\"\",'Zahlungsantrag LEW14-20'!PaymAppl_SupportPeriodEnd)","v":""}]
[]
[]
[]
[]
[]
[]
[]
[]
[]
[]
[]
[]
[]
[]
[]
[]
[]
[null,"Buttons nur zur internen Verwendung der Bewilligenden Stelle"]
[]
[]
[]
[]
[]
[null,null,null,"U"]

{"sheet":"TEMPLATE Auswahl Belegaufst.","index":5,"n_rows":36,"n_cols":4,"rows_kept":36,"cut":false,"hidden":true,"merged":[[0,0,0,4],[29,1,29,3],[2,2,2,3],[4,2,4,3],[6,2,6,3],[8,2,8,3]]}
["Zahlungsantrag - Stammdaten/Übersicht"]
[]
[null,"Betriebs-/Klientennummer: "]
[]
[null,"Förderungswerber: "]
[]
[null,"Antragsnummer: "]
[]
[null,"Vorsteuerabzugsberechtigung: ","Ja"]
[]
[null,"Genehmigter Zeitraum für  ","Beginn","Ende"]
[null,"Kostenanerkennung: "]
[]
[]
[]
[]
[]
[]
[]
[]
[]
[]
[]
[]
[]
[]
[]
[]
[]
[null,"Buttons nur zur internen Verwendung der Bewilligenden Stelle"]
[]
[]
[]
[]
[]
[null,null,null,"U"]

{"sheet":"TEMPLATE Übersicht","index":6,"n_rows":40,"n_cols":11,"rows_kept":40,"cut":false,"hidden":true,"merged":[[0,0,0,10],[2,0,2,1],[2,2,2,5],[4,0,4,1],[4,2,4,5],[6,0,6,1],[6,2,6,5],[8,0,8,1],[8,2,8,5],[34,0,34,10],[10,0,10,1],[11,0,11,1],[13,0,13,5],[14,0,14,5]]}
["Übersicht"]
[]
["Betriebs-/Klientennummer: ",null,{"$f":"IF(IsEmptyString([0]!Stm_ApplicantID),\"\",[0]!Stm_ApplicantID)","v":""}]
[]
["Förderungswerber: ",null,{"$f":"IF(IsEmptyString([0]!Stm_ApplicantName),\"\",[0]!Stm_ApplicantName)","v":""}]
[]
["Antragsnummer: ",null,{"$f":"IF(IsEmptyString([0]!Stm_ApplicationID),\"\",[0]!Stm_ApplicationID)","v":""}]
[]
["Vorsteuerabzugsberechtigung: ",null,{"$f":"[0]!Stm_TaxDeduct","v":"Ja"}]
[]
["Genehmigter Zeitraum für  ",null,null,"Beginn","---","Ende"]
["Kostenanerkennung: ",null,null,{"$f":"IF(IsEmptyString([0]!Stm_SupportPeriodStart),\"\",[0]!Stm_SupportPeriodStart)","v":""},"---",{"$f":"IF(IsEmptyString([0]!Stm_SupportPeriodEnd),\"\",[0]!Stm_SupportPeriodEnd)","v":""}]
[]
["Buttons zur internen Verwendung der Bewilligenden Stelle"]
[]
[]
[]
[]
[]
[]
[]
[]
[]
[]
[]
[]
[]
[]
[]
[]
[]
[]
[]
[31,1,1,1]
["Gesamtsumme"]
["Tabellenblatt","Kostenart","Fördergegenstand","Gesamtkosten\nbrutto","Gesamtkosten\nnetto","eingereichte\nKosten","verminderte Kosten\nnach VWK","anrechenbare Kosten\nnach VWK","verminderte Kosten nach VOK","anrechenbare Kosten nach VOK","Einnahmen "]
[]
[null,"Summe: "]
[]
[null,"Gesamtsumme: "]

{"sheet":"TEMPLATE Invest & Sachkosten","index":7,"n_rows":42,"n_cols":27,"rows_kept":42,"cut":false,"hidden":true,"merged":[[40,3,40,5],[40,7,40,12],[39,3,39,5],[39,7,39,12],[0,2,0,15],[1,14,1,15],[2,14,2,15],[8,2,8,3],[4,2,4,3],[6,2,6,3],[4,4,4,5],[6,4,6,5],[8,4,8,5],[22,16,22,20],[10,4,10,5],[10,2,10,3],[22,22,22,26],[13,4,13,5],[18,2,18,5],[22,2,22,15],[11,4,11,5],[11,2,11,3],[13,2,13,3],[15,2,15,3],[16,2,16,3]]}
[":","Investkosten","Zahlungsantrag - Belegaufstellung für Investitionskosten"]
[":","Sachkosten","Zahlungsantrag - Belegaufstellung für Sachkosten"]
[":","Invest- & Sachkosten","Zahlungsantrag - Belegaufstellung für Investitions- und Sachkosten"]
["UBVbv"]
["UBVbv",null,"Betriebs-/Klientennummer: "]
["UBVbv"]
["UBVbv",null,"Förderungswerber: "]
["UBVbv"]
["UBVbv",null,"Antragsnummer: "]
["UBVbv"]
["UBVbv",null,"Fördergegenstand: "]
[]
["UBVbv"]
["UBVbv",null,"Vorsteuerabzugsberechtigung: ",null,"Ja",null,"Ja","Nein"]
["UBVbv"]
["UBVbv",null,"Genehmigter Zeitraum für  ",null,"Beginn","Ende"]
["UBVbv",null,"Kostenanerkennung: "]
["UBVbv"]
["UBVbv",null,"Buttons zur internen Verwendung der Bewilligenden Stelle"]
["UBVbv"]
["UBVbv"]
["-","-","UBVbv","UBVbv","UBVbv","UBVbv","UBV","UBVbv","UBV","UBVbv",null,"UBVbv","UBV","UBV","UBV","UBVbv","BV","BV","BV","BVbv","BVbv","V","V","V","V","Vv","Vv"]
["UBVbv",null,"Belege",null,null,null,null,null,null,null,null,null,null,null,null,null,"von der Bewilligenden Stelle im Rahmen der VWK auszufüllen",null,null,null,null,"vom TPD auszufüllen","von der Bewilligenden Stelle auszufüllen (im Rahmen einer VOK)"]
["UBVbv",null,"lfd. Nr.","Belegdatum","Belegnr. / \nRechnungsnummer","Firma bzw. Name","Bezeichnung (Ware, Leistung)","Zuordnung zu Teilprojekt \n(falls erforderlich)","Datum Saldierung\n(Zahlungs-\ndatum)","Belegbetrag \nbrutto","MwSt.\nSatz","Belegbetrag\nnetto","davon nicht anrechenbare Kosten","anrechenbare Kosten","Abzüge \nin %","eingereichte  \nKosten","nicht anrechenbare zu vermindernde Kosten durch VWK","verminderte Kosten nach VWK","nicht anrechenbare zu sanktionierende Kosten durch VWK","anrechenbare Kosten nach VWK","Anmerkung zur VWK","Anmerkungen des TPD","nicht anrechenbare zu vermindernde Kosten durch VOK","verminderte Kosten nach VOK","nicht anrechenbare zu sanktionierende Kosten durch VOK","anrechenbare Kosten nach VOK","Anmerkung zur VOK"]
["-","Head",0,null,"-- Do not Erase --","-- Do not Erase --","-- Do not Erase --",null,null,null,0.2,{"$f":"IF(OR(ISBLANK(J25),ISBLANK(K25)),0,J25 / (1+K25))","v":0},null,{"$f":"IF($E$14=\"Nein\",J25,L25)-M25","v":0},null,{"$f":"N25*(1-O25)","v":0},null,{"$f":"P25-Q25","v":0},null,{"$f":"P25-Q25-S25","v":0},null,null,null,{"$f":"T25-W25","v":0},null,{"$f":"T25-W25-Y25","v":0}]
["UBVbv","Receipt",{"$f":"C25+1","v":1},null,null,null,null,null,null,null,0.2,{"$f":"IF(OR(ISBLANK(J26),ISBLANK(K26)),0,J26 / (1+K26))","v":0},null,0,null,0,null,0,null,0,null,null,null,0,null,0]
["UBVbv","Receipt",2,null,null,null,null,null,null,null,0.2,0,null,0,null,0,null,0,null,0,null,null,null,0,null,0]
["UBVbv","Receipt",3,null,null,null,null,null,null,null,0.2,0,null,0,null,0,null,0,null,0,null,null,null,0,null,0]
["UBVbv","Receipt",4,null,null,null,null,null,null,null,0.2,0,null,0,null,0,null,0,null,0,null,null,null,0,null,0]
["UBVbv","Receipt",5,null,null,null,null,null,null,null,0.2,0,null,0,null,0,null,0,null,0,null,null,null,0,null,0]
["UBVbv","Receipt",6,null,null,null,null,null,null,null,0.2,0,null,0,null,0,null,0,null,0,null,null,null,0,null,0]
["-","Tail",{"$f":"C31+1","v":7},null,"-- Do not Erase --","-- Do not Erase --","-- Do not Erase --",null,null,null,0.2,{"$f":"IF(OR(ISBLANK(J32),ISBLANK(K32)),0,J32 / (1+K32))","v":0},null,{"$f":"IF($E$14=\"Nein\",J32,L32)-M32","v":0},null,{"$f":"N32*(1-O32)","v":0},null,{"$f":"P32-Q32","v":0},null,{"$f":"P32-Q32-S32","v":0},null,null,null,{"$f":"T32-W32","v":0},null,{"$f":"T32-W32-Y32","v":0}]
["UBVbv","Receipt",{"$f":"C32+1","v":8},null,null,null,null,null,null,null,0.2,0,null,0,null,0,null,0,null,0,null,null,null,0,null,0]
["-","Tail",{"$f":"C33+1","v":9},null,"-- Do not Erase --","-- Do not Erase --","-- Do not Erase --",null,null,null,0.2,0,null,0,null,0,null,0,null,0,null,null,null,0,null,0]
["UBVbv",null,null,null,null,null,null,null,"Gesamtsumme:",{"$f":"SUM(J25:J34)","v":0},null,{"$f":"SUM(L25:L34)","v":0},null,{"$f":"SUM(N25:N34)","v":0},null,{"$f":"SUM(P25:P34)","v":0},{"$f":"SUM(Q25:Q34)","v":0},{"$f":"SUM(R25:R34)","v":0},{"$f":"SUM(S25:S34)","v":0},{"$f":"SUM(T25:T34)","v":0},null,null,{"$f":"SUM(W25:W34)","v":0},{"$f":"SUM(X25:X34)","v":0},{"$f":"SUM(Y25:Y34)","v":0},{"$f":"SUM(Z25:Z34)","v":0}]
["U"]
["U"]
["U"]
["U"]
["U"]
["U",null,null,"Ort, Datum",null,null,null,"Unterschrift oder firmenmäßige Zeichnung"]
["U"]

{"sheet":"TEMPLATE Unbare Sachleistungen","index":8,"n_rows":53,"n_cols":31,"rows_kept":53,"cut":false,"hidden":true,"merged":[[4,5,4,6],[4,2,4,4],[11,5,11,6],[9,2,9,4],[6,2,6,4],[6,5,6,6],[8,5,8,6],[9,5,9,6],[51,2,51,4],[51,6,51,12],[22,6,22,7],[24,6,24,7],[26,6,26,7],[30,2,30,11],[24,2,24,4],[50,6,50,12],[25,2,25,4],[25,6,25,7],[22,2,22,4],[50,2,50,4],[0,2,0,12],[29,2,29,11],[20,6,20,7],[21,6,21,7],[23,6,23,7],[21,2,21,4],[27,6,27,7],[13,2,13,4],[19,2,19,7],[2,2,2,4],[8,2,8,4],[11,2,11,4],[14,2,14,4],[20,2,20,4],[16,2,16,6],[2,5,2,6],[33,22,33,30],[33,12,33,20],[23,2,23,4],[26,2,26,4],[27,2,27,4],[33,2,33,11]]}
["UBVbv",null,"Zahlungsantrag - Belegaufstellung unbare Eigenleistungen (=unbare Sachleistungen)"]
["UBVbv"]
["UBVbv",null,"Betriebs-/Klientennummer: "]
["UBVbv"]
["UBVbv",null,"Förderungswerber: "]
["UBVbv"]
["UBVbv",null,"Antragsnummer: "]
["UBVbv"]
["UBVbv",null,"Fördergegenstand: "]
[]
["UBVbv"]
["UBVbv",null,"Vorsteuerabzugsberechtigung: ",null,null,"Ja"]
["UBVbv"]
["UBVbv",null,"Genehmigter Zeitraum für  ",null,null,"Beginn","Ende"]
["UBVbv",null,"Kostenanerkennung: "]
["UBVbv"]
["UBVbv",null,"Buttons zur internen Verwendung der Bewilligenden Stelle"]
["UBVbv"]
["UBVbv"]
["UBVbv",null,"Leistungserbringer"]
["UBVbv",null,"Name des Leistungserbringers",null,null,"Verhältnis zum Förderungswerber*","Unterschrift**"]
["-","Head","-- Do not Erase --"]
["UBVbv","Worker"]
["UBVbv","Worker"]
["UBVbv","Worker"]
["-","Tail","-- Do not Erase --"]
["UBVbv","Worker"]
["-","Tail","-- Do not Erase --"]
["UBVbv"]
["UBVbv",null,"*Zum Beispiel: Verwandtschaftsverhältnis (Eltern, Geschwister, etc.), Teil des Förderungswerbers (z.B. Vereinsmitglied, Genossenschaftsmitglied, Mitglied der Personengemeinschaft etc.)"]
["UBVbv",null,"**Ich (Leistungserbringer) bestätige hiermit, die unten aufgelistete Tätigkeiten für den Förderungswerber durchgeführt zu haben:"]
["UBVbv"]
["-","-","UBVbv","UBV","UBVbv","UBVbv","UBVbv","UBVbv","UBV","UBV","UBV","UBVbv","BV","BV","BV","BV","BV","BV","BV","BVbv","BVbv","V","V","V","V","V","V","V","V","Vv","Vv"]
["UBVbv",null,"Belege",null,null,null,null,null,null,null,null,null,"von der Bewilligenden Stelle im Rahmen der VWK auszufüllen",null,null,null,null,null,null,null,null,"vom TPD auszufüllen","von der Bewilligenden Stelle auszufüllen (im Rahmen einer VOK)"]
["UBVbv",null,"lfd. Nr.","Datum","Leistungserbringer","Art der Leistung /\nTätigkeit bzw.                                          eingebrachte Sachleistung","Zuordnung zu Teilprojekt\n(falls erforderlich)","Einheit                 (Std., fm., Anzahl, usw.)","beantragter Stunden- / Kostensatz","berechnete Kosten der Eigenleistung","Abzüge in %","eingereichte Kosten","verminderte anrechenbare Einheiten nach \nVWK "," verminderter anrechenbarer Stunden- / Kostensatz nach VWK ","verminderte Abzüge \nin % nach VWK ","verminderte\nKosten nach VWK ","anrechenbare Einheiten abzüglich der sanktionsrelevanten Einheiten nach VWK","anrechenbarer Stunden-/ Kostensatz abzüglich des sanktionsrelevanten Stunden-/ Kostensatzes nach VWK","anrechenbare Abzüge\nin % nach Berücksichtigung der sanktionsrelevanten  Abzüge durch VWK","anrechenbare\nKosten \nnach VWK","Anmerkung zur VWK","Anmerkungen des TPD","verminderte anrechenbare Einheiten nach \nVOK "," verminderter anrechenbarer Stunden- / Kostensatz nach VOK ","verminderte Abzüge \nin % nach VOK ","verminderte\nKosten nach VOK ","anrechenbare Einheiten abzüglich der sanktionsrelevanten Einheiten nach VOK","anrechenbarer Stunden-/ Kostensatz abzüglich des sanktionsrelevanten Stunden-/ Kostensatzes nach VOK","anrechenbare Abzüge\nin % nach Berücksichtigung der sanktionsrelevanten  Abzüge durch VOK","anrechenbare\nKosten \nnach VOK","Anmerkung zur VOK"]
["-","Head",0,null,"-- Do Not Erase --",null,null,null,null,{"$f":"I36*H36","v":0},null,{"$f":"J36*(1-K36)","v":0},{"$f":"H36","v":0},{"$f":"I36","v":0},{"$f":"K36","v":0},{"$f":"(M36*N36)*(1-O36)","v":0},{"$f":"M36","v":0},0,0,{"$f":"(Q36*R36)*(1-S36)","v":0},null,null,{"$f":"Q36","v":0},{"$f":"R36","v":0},{"$f":"S36","v":0},{"$f":"W36*X36*(1-Y36)","v":0},{"$f":"W36","v":0},{"$f":"X36","v":0},{"$f":"Y36","v":0},{"$f":"AA36*AB36*(1-AC36)","v":0}]
["UBVbv","Receipt",{"$f":"C36+1","v":1},null,null,null,null,null,null,{"$f":"I37*H37","v":0},null,0,0,{"$f":"I37","v":0},0,0,0,0,0,0,null,null,{"$f":"Q37","v":0},{"$f":"R37","v":0},{"$f":"S37","v":0},{"$f":"W37*X37*(1-Y37)","v":0},{"$f":"W37","v":0},{"$f":"X37","v":0},{"$f":"Y37","v":0},0]
["UBVbv","Receipt",2,null,null,null,null,null,null,0,null,0,0,0,0,0,0,0,0,0,null,null,0,0,{"$f":"S38","v":0},0,0,0,0,0]
["UBVbv","Receipt",3,null,null,null,null,null,null,0,null,0,0,0,0,0,0,0,0,0,null,null,0,0,0,0,0,0,0,0]
["UBVbv","Receipt",4,null,null,null,null,null,null,0,null,0,0,0,0,0,0,0,0,0,null,null,0,0,0,0,0,0,0,0]
["UBVbv","Receipt",5,null,null,null,null,null,null,{"$f":"I41*H41","v":0},null,{"$f":"J41*(1-K41)","v":0},{"$f":"H41","v":0},{"$f":"I41","v":0},{"$f":"K41","v":0},{"$f":"(M41*N41)*(1-O41)","v":0},{"$f":"M41","v":0},0,0,{"$f":"(Q41*R41)*(1-S41)","v":0},null,null,{"$f":"Q41","v":0},0,0,{"$f":"W41*X41*(1-Y41)","v":0},{"$f":"W41","v":0},0,{"$f":"Y41","v":0},0]
["-","Tail",6,null,"-- Do Not Erase --",null,null,null,null,{"$f":"I42*H42","v":0},null,{"$f":"J42*(1-K42)","v":0},{"$f":"H42","v":0},{"$f":"I42","v":0},{"$f":"K42","v":0},{"$f":"(M42*N42)*(1-O42)","v":0},0,0,0,{"$f":"(Q42*R42)*(1-S42)","v":0},null,null,0,0,0,{"$f":"W42*X42*(1-Y42)","v":0},{"$f":"W42","v":0},{"$f":"X42","v":0},{"$f":"Y42","v":0},{"$f":"AA42*AB42*(1-AC42)","v":0}]
["UBVbv","Receipt",7,null,null,null,null,null,null,0,null,0,0,0,0,0,0,0,0,0,null,null,0,0,0,0,0,0,0,0]
["-","Tail",8,null,"-- Do Not Erase --",null,null,null,null,0,null,0,0,0,0,0,0,0,0,0,null,null,0,0,0,0,0,0,0,0]
["UBVbv",null,null,null,null,null,null,null,"Gesamtsumme: ",{"$f":"SUM(J36:J44)","v":0},null,{"$f":"SUM(L36:L44)","v":0},null,null,null,{"$f":"SUM(P36:P44)","v":0},null,null,null,{"$f":"SUM(T36:T44)","v":0},null,null,null,null,null,{"$f":"SUM(Z36:Z44)","v":0},null,null,null,{"$f":"SUM(AD36:AD44)","v":0}]
["U"]
["U"]
["U",null,"Ich bestätige hiermit als Förderungswerber die Richtigkeit der Angaben "]
["U"]
["U"]
["U"]
["U",null,"Ort, Datum",null,null,null,"Unterschrift oder firmenmäßige Zeichnung"]
["U"]

{"sheet":"TEMPLATE Personalkosten","index":9,"n_rows":194,"n_cols":8,"rows_kept":194,"cut":false,"hidden":true,"merged":[[10,4,10,5],[2,0,2,11],[10,6,10,11],[34,0,34,11],[33,0,33,11],[1,0,1,11],[4,4,4,5],[6,4,6,5],[8,4,8,5],[4,6,4,11],[6,6,6,11],[8,6,8,11],[12,4,12,5],[12,6,12,11],[13,4,13,5],[13,6,13,11],[36,0,36,11],[35,0,35,11]]}
[]
["Zahlungsantrag - Belegaufstellung Personalkosten"]
[{"$f":"\"inkl. Obergrenzen für \" &D17","v":"inkl. Obergrenzen für 2015"}]
[]
["Kurzbezeichung des Vorhabens  ",null,null,"X"]
[]
["Betriebs-/Klientennummer ",null,null,"X"]
[]
["Förderungswerber ",null,null,"X"]
[]
["Antragsnummer ",null,null,"X"]
[]
["Fördergegenstand ",null,null,"X"]
["Fördergegenstand ",null,null,"X"]
[]
["Bitte wählen Sie ein Abrechungsmodell:",null,null,"D"]
[null,null,"Ja",{"$f":"'TEMPLATE Gehaltsgrenzen'!A1","v":2015}]
[null,null,"Nein"]
[null,null,null,"D"]
[]
[]
[]
[null,null,null,"B"]
[]
[]
[]
[null,null,null,"A"]
[]
[]
[]
[null,null,null,"C"]
[]
[]
["Personalkostenabrechnung auf Ist-Kosten Basis (Stundensatzermittlung)"]
["Personalkostenabrechnung auf Basis von standardisierten Einheitkosten (Lohnnebenkosten auf Ist-Basis)"]
["Personalkostenabrechung auf Ist-Kosten-Basis \n(Mitarbeiter ist für einen bestimmten Zeitraum zu 100% dem Projekt zuordenbar)"]
["Personalkostenabrechnung mit standardisierten Einheitskosten (%-Zuschlag für Lohnnebenkosten)"]
[null,"Type","Valid for","Visible for"]
["MitarbeiterIn (Name)","In","ABCD","ABCD","Name eintragen","Shadow Copy"]
["Jahr (jjjj)","In","ABCD","ABCD",2015,2015]
["Anzahl der abgerechneten Monate","In","ABCD","ABCD",12,12]
["Bruttojahresbezug","In","D","D",0,0]
["Bruttobezug enthält Überstundenpauschale (All-In-Dienstvertrag)","In","ABCD","ABCD","Nein","Nein"]
["Wochenarbeitsstunden (bei Bruttojahresbezug)","In","D","D"]
["Pauschalstundensatz (ex. Mode D)","In","-","-"]
["Beginn der Tätigkeit im Kalenderjahr ","In","C","C","2015-01-01","2015-01-01"]
["Ende der Tätigkeit im Kalenderjahr","In","C","C","2015-12-31","2015-12-31"]
[null,null,null,"-"]
["förderb. Bruttogehalts(Lohn)kosten in €",null,null,"ABC",{"$f":"SUM(E50:E56)","v":0},{"$f":"SUM(F50:F56)","v":0}]
["Nettogehalt (exkl. Diäten, km-Geld, …) ",null,null,"AC",0,0]
["Nettogehalt (exkl. Diäten, km-Geld, Überstundenentgelt, …)",null,null,"B",0,0]
["Dienstnehmeranteil Sozialversicherung (SV) auf LF",null,null,"ABC",0,0]
["Dienstnehmeranteil Sozialversicherung (SV) auf SZ",null,null,"ABC",0,0]
["Dienstnehmeranteil Lohnsteuer (LST) auf LF",null,null,"ABC",0,0]
["Dienstnehmeranteil Lohnsteuer (LST) auf SZ",null,null,"ABC",0,0]
["sonstige Abzüge (e-card)",null,null,"ABC",0,0]
["nicht förderbare Bruttogehalts(Lohn)kosten in €",null,null,"ABC",{"$f":"E58+E59","v":0},{"$f":"F58+F59","v":0}]
["Überstunden (Grundlohn + Zuschläge)",null,null,"B",0,0]
["sonstige Sonderzahlungen",null,null,"ABC",0,0]
["förderbare Personalnebenkosten DG-Anteil - gesamt in €",null,null,"ABC",{"$f":"SUM(E61:E67)","v":0},{"$f":"SUM(F61:F67)","v":0}]
["Dienstgeberanteil Sozialversicherung (SV) auf LF ",null,null,"ABC",0,0]
["Dienstgeberanteil Sozialversicherung (SV) auf SZ",null,null,"ABC",0,0]
["Dienstgeberbeitrag (DB) zum FLAF",null,null,"ABC",0,0]
["Zuschlag zum Dienstgeberbeitrag (DZ)",null,null,"ABC",0,0]
["Dienstgeberabgabe - U-Bahn-Steuer (nur in Wien)",null,null,"ABC",0,0]
["Kommunalsteuer",null,null,"ABC",0,0]
["Mitarbeiter-/Betriebl. Vorsorgekasse (MV / BV) ",null,null,"ABC",0,0]
["Personalnebenkosten nicht förderbar in €",null,null,"ABC",{"$f":"SUM(E69:E70)","v":0},{"$f":"SUM(F69:F70)","v":0}]
["freiwillige Unternehmensleistungen",null,null,"ABC",0,0]
["Aliquote Nebenkosten f. nicht förderb. Bruttobezüge",null,null,"ABC",{"$f":"IF(E49=0,0,(E57+E69)/(E49+E57+E69)*E60)","v":0},{"$f":"IF(F49=0,0,(F57+F69)/(F49+F57+F69)*F60)","v":0}]
["Summe förderbarer direkter Personalkosten in €",null,null,"ABC",{"$f":"E49+E60-E70","v":0},{"$f":"F49+F60-F70","v":0}]
["Summe förderb. direkter Personalk. f. Tätigkeitszeitraum in €.","Calc","ABC","C",{"$f":"E71*E84/E83","v":0},{"$f":"F71*F84/F83","v":0}]
["Personalkostenobergrenze lt. Dienstkl. 7/II in €","Calc","ABCD","ABC",{"$f":"E104","v":73670},{"$f":"F104","v":73670}]
["Personalkostenobergrenze lt. Dienstkl. 7/II in f. Tätigkeitsz. in €","Calc","C","C",{"$f":"E105","v":73670},{"$f":"F105","v":73670}]
["Wochenarbeitsstunden","In","ABC","ABC",0,0]
["Tatsächlich geleistete Arbeitszeit in Stunden ","Calc","ABCD","A",{"$f":"IF(Labour_SelectedCalcTypeCell=\"A\",E77,E92)","v":1800},{"$f":"IF(Labour_SelectedCalcTypeCell=\"A\",F77,F92)","v":1800}]
["Anwesenheitsstunden inkl. Überstunden","In","A","A",0,0]
[null,null,null,"-"]
["   Bruttobezüge","Calc","ABCD","-",{"$f":"IF(Labour_SelectedCalcTypeCell=\"D\",E42,E72)","v":0},{"$f":"IF(Labour_SelectedCalcTypeCell=\"D\",F42,F72)","v":0}]
["   Beginn der Tätigkeit im Kalendermonat (Mode C)","Calc","C","-",{"$f":"IF(AND(MONTH(E46)=2,DAY(E46)>=28),30,MIN(DAY(E46),30))","v":1},{"$f":"IF(AND(MONTH(F46)=2,DAY(F46)>=28),30,MIN(DAY(F46),30))","v":1}]
["   Ende der Tätigkeit im Kalendermonat (Mode C)","Calc","C","-",{"$f":"IF(AND(MONTH(E47)=2,DAY(E47)>=28),30,MIN(DAY(E47),30))","v":30},{"$f":"IF(AND(MONTH(F47)=2,DAY(F47)>=28),30,MIN(DAY(F47),30))","v":30}]
["   Dauer der Tätigkeit in Tagen (Mode C)","Calc","C","-",{"$f":"360*(YEAR(E47)-YEAR(E46)) + 30*(MONTH(E47)-MONTH(E46)) + (E81-E80) + 1","v":360},{"$f":"360*(YEAR(F47)-YEAR(F46)) + 30*(MONTH(F47)-MONTH(F46)) + (F81-F80) + 1","v":360}]
["   Abgerechnete Tage","Calc","ABCD","-",{"$f":"30*E41","v":360},{"$f":"30*F41","v":360}]
["   Dauer der Tätigkeit in Tagen","Calc","ABCD","-",{"$f":"IF(Labour_SelectedCalcTypeCell=\"C\",E82,E83)","v":360},{"$f":"IF(Labour_SelectedCalcTypeCell=\"C\",F82,F83)","v":360}]
["   Wochenarbeitsstunden Vollzeit","Const.","ABCD","-",40,40]
["  Jahresarbeitsstunden Vollzeit (ohne Überstunden)","Const.","ABCD","-",1800,1800]
["  Jahresarbeitsstunden Vollzeit (All-In-Dienstverträge)","Const.","D","-",1980,1980]
["  Jahresarbeitsstunden Vollzeit (f. realen Vertrag)","Calc","ABCD","-",{"$f":"IF(UPPER(E43)=\"JA\",E87,E86)","v":1800},{"$f":"IF(UPPER(F43)=\"JA\",F87,F86)","v":1800}]
["   Wochenarbeitsstunden Teilzeit","Calc","ABCD","-",{"$f":"IF(Labour_SelectedCalcTypeCell=\"D\",MIN(E44,E85),MIN(E75,E85))","v":40},{"$f":"IF(Labour_SelectedCalcTypeCell=\"D\",MIN(F44,F85),MIN(F75,F85))","v":40}]
["  Jahresarbeitsstunden Teilzeit (f. realen Vertrag)","Calc","ABCD","-",{"$f":"E88*E89/E85","v":1800},{"$f":"F88*F89/F85","v":1800}]
["   Arbeitsstunden Teilzeit / Abrechnungszeitraum (f. realen Vertrag)","Calc","ABCD","-",{"$f":"E90*E83/360","v":1800},{"$f":"F90*F83/360","v":1800}]
["   Arbeitsstunden Teilzeit / Tätigkeitszeitraum (f. realen Vertrag)","Calc","ABCD","-",{"$f":"IF(Labour_SelectedCalcTypeCell=\"A\",E77,E90*E84/360)","v":1800},{"$f":"IF(Labour_SelectedCalcTypeCell=\"A\",F77,F90*F84/360)","v":1800}]
["   Bruttobezug pro Jahr (f. reale Wochenarbeitsstunden)","Calc","D",null,{"$f":"E79 * (360/E83)","v":0},{"$f":"F79 * (360/F83)","v":0}]
["   Bruttobezug pro Jahr Vollzeitäquivalent","Calc","D","-",{"$f":"IF(E89=0,0,E93 * (E85/E89))","v":0},{"$f":"IF(F89=0,0,F93 * (F85/F89))","v":0}]
["   Bruttobezug in €/Std","Calc","D","-",{"$f":" IF(E92=0,0,E79 / E92)","v":0},{"$f":" IF(F92=0,0,F79 / F92)","v":0}]
["   Lohnkosten Teilzeit / Jahr (inkl. Lohnnebenkosten)","Calc","D","-",{"$f":"(1.09 * E93 + 0.21 * MIN(E93,E99))","v":0},{"$f":"(1.09 * F93 + 0.21 * MIN(F93,E99))","v":0}]
["   Lohnkosten Teilzeit / Abrechnungszeitraum (inkl. Lohnnebenkosten)","Calc","ABD","-",{"$f":"IF(Labour_SelectedCalcTypeCell<=\"B\",E71,E96*E83/360)","v":0},{"$f":"IF(Labour_SelectedCalcTypeCell<=\"B\",F71,F96*F83/360)","v":0}]
["   Lohnkosten in €/Std (inkl. Lohnnebenkosten)","Calc","D",null,{"$f":"IF(E92=0,0,E97 / E92)","v":0},{"$f":"IF(F92=0,0,F97 / F92)","v":0}]
["   ASVG Höchstbemessungsgrundlage ","Lookup","ABCD","-",{"$f":"VLOOKUP(E40,'TEMPLATE Gehaltsgrenzen'!$A$3:$C$19,3)","v":65100},{"$f":"VLOOKUP(F40,'TEMPLATE Gehaltsgrenzen'!$A$3:$C$19,3)","v":65100}]
["   Gehalt für Bundesbeamte der allgem.Verwaltung Dienstklasse VII/2","Lookup","ABCD","-",{"$f":"VLOOKUP(E40,'TEMPLATE Gehaltsgrenzen'!$A$3:$C$19,2)","v":73670},{"$f":"VLOOKUP(F40,'TEMPLATE Gehaltsgrenzen'!$A$3:$C$19,2)","v":73670}]
["   Gehalt für Bundesbeamte VII/2 ggf. mit Überstd. (f. realen Vertrag)","Calc ","ABD","-",{"$f":"IF(UPPER(E43)=\"JA\",E100*E87/E86,E100)","v":73670},{"$f":"IF(UPPER(F43)=\"JA\",F100*F87/F86,F100)","v":73670}]
["   Arbeitsstunden Teilzeit / Tätigkeitszeitraum (f. Beamte)","Calc","ABCD",null,{"$f":"IF(Labour_SelectedCalcTypeCell=\"A\",E77,E88*E84/360*E89/E85)","v":1800},{"$f":"IF(Labour_SelectedCalcTypeCell=\"A\",F77,F88*F84/360*F89/F85)","v":1800}]
["   Jahresgehalt für Beamte Teilzeit in €/Jahr","Calc","ABCD","-",{"$f":"E101*E89/E85","v":73670},{"$f":"F101*F89/F85","v":73670}]
["   Gehalt für Beamte Dienstkl. VII/2 - Teilzeit in € / Abrechnungszeitraum","Calc","ABCD","-",{"$f":"E103*E83/360","v":73670},{"$f":"F103*F83/360","v":73670}]
["   Gehalt für Beamte Dienstkl. VII/2 - Teilzeit in € / Tätigkeitszeitraum","Calc","ABCD","-",{"$f":"E103*E84/360","v":73670},{"$f":"F103*F84/360","v":73670}]
["   Stundenlohn für Beamte lt Dienstkl. VII/2 in €/Std","Calc","ABCD","-",{"$f":"IF(E102=0,0,E104/E102)","v":40.927777777777777},{"$f":"IF(F102=0,0,F104/F102)","v":40.927777777777777}]
["Berechneter Stundensatz in €/Std","Calc","D","D",{"$f":"E98","v":0},{"$f":"F98","v":0}]
["Personalkostenobergrenze lt. Dienstkl. VII/2 in €/Std","Calc","D","D",{"$f":"E106","v":40.927777777777777},{"$f":"F106","v":40.927777777777777}]
["Anrechenbarer Stundensatz in €/Std","Calc","D","D",{"$f":"MIN(E107,E108)","v":0},{"$f":"MIN(F107,F108)","v":0}]
[null,null,null,"-"]
["Berechneter Stundensatz in €/Std","Calc","AB","AB",{"$f":"IF(E76=0,0,E71/E76)","v":0},{"$f":"IF(F76=0,0,F71/F76)","v":0}]
["Stundenlohn für Beamte lt Dienstkl. VII/2 in €/Std","Calc","AB","AB",{"$f":"IF(Labour_SelectedCalcTypeCell=\"A\",IF(E76=0,0,E73/E76),E106)","v":40.927777777777777},{"$f":"IF(Labour_SelectedCalcTypeCell=\"A\",IF(F76=0,0,F73/F76),F106)","v":40.927777777777777}]
["Anrechenbarer Stundensatz in €","Calc","ABD","AB",{"$f":" IF(Labour_SelectedCalcTypeCell=\"D\",E109,ROUND(MIN(E111,E112),5))","v":0},{"$f":"E113","v":0}]
["Anrechenbarer Stundensatz in € nach VWK durch BST","Calc","ABD","AB",{"$f":"E113","v":0},{"$f":" IF(Labour_SelectedCalcTypeCell=\"D\",F109,ROUND(IF(F76=0,0,MIN(F111,F112)),5))","v":0}]
["eingereichte anrechenb. Personalkosten in €","Calc","C","C",{"$f":"ROUND(MIN(E71,E73)*E82/E83,2)","v":0},{"$f":"E115","v":0},{"$f":"E115","v":0},{"$f":"F115","v":0}]
["eingereichte anrechenb. Personalkosten nach VWK in €","Calc","C","C",{"$f":"E115","v":0},{"$f":"ROUND(MIN(F71,F73)*F82/F83,2)","v":0},{"$f":"E116","v":0},{"$f":"F116","v":0}]
["eingereichte anrechenb. Gemeinkosten (Pauschalsatz in %)","Calc","C","C",0,0]
["eingereichte anrechenb. Gemeinkosten in €","Calc","C","C",{"$f":"E115*E117","v":0},{"$f":"F115*F117","v":0},{"$f":"E118","v":0},0]
["einger. anrechenb. Personalkosten inkl. Gemeinkosten in €","Calc","C","C",{"$f":"E118+E115","v":0},{"$f":"F118+F115","v":0},0,0]
["einger. anrechenb. Personalkosten inkl. Gemeink. nach VWK","Calc","C","C",{"$f":"E116*(1+E117)","v":0},{"$f":"F116*(1+F117)","v":0},0,0]
[null,null,null,"ABCD"]
["Berechnete Überweisungen laut Jahreslohnkonto",null,null,"AC",{"$f":"E40","v":2015},{"$f":"F40","v":2015}]
["Sozialversicherung",null,null,"AC",{"$f":"E52+E53+E56+E61+E62+E67","v":0},{"$f":"F52+F53+F56+F61+F62+F67","v":0}]
["Finanzamt",null,null,"AC",{"$f":"E54+E55+E63+E64","v":0},{"$f":"F54+F55+F63+F64","v":0}]
["Kommunalsteuer",null,null,"AC",{"$f":"E66","v":0},{"$f":"F66","v":0}]
["Nettogehalt",null,null,"AC",{"$f":"E50+E51","v":0},{"$f":"F50+F51","v":0}]
["Summe",null,null,"AC",{"$f":"SUM(E123:E126)","v":0},{"$f":"SUM(F123:F126)","v":0}]
[null,null,null,"AC"]
["Gesamtstundenübersicht",null,null,"ABD",{"$f":"E40","v":2015},{"$f":"F40","v":2015}]
[{"$f":"IF(ISBLANK(G13),IF(ISBLANK(G5),\"\",G5),G13)","v":""},null,null,"ABD",0,0]
["Dummy Line - Do not Use - Do not Erase",null,null,"Proj",0,0]
["Sonstige Projekte",null,null,"Proj-ABD",0,0]
["z.Bsp: Projekt Qualifizierung",null,null,"Proj-ABD",0,0]
["z.Bsp: Projekt Vierkanter",null,null,"Proj-ABD",0,0]
[null,null,null,"Proj-ABD",0,0]
[null,null,null,"Proj",0,0]
[null,null,null,"Proj",0,0]
["Dummy Line - Do not Use - Do not Erase",null,null,"Proj",0,0]
["Summe über alle Projekte",null,null,"ABD",{"$f":"SUM(E130:E138)","v":0},{"$f":"SUM(F130:F138)","v":0}]
["Tatsächlich geleistete Arbeitsstunden",null,null,"A",{"$f":"E76","v":1800},{"$f":"F76","v":1800}]
["Durchschnittl. Jahresarbeitsstunden des Mitarbeiters",null,null,"B",{"$f":"E92","v":1800},{"$f":"F92","v":1800}]
["Arbeitsstunden des Mitarbeiters im Abrechnungszeitraum",null,null,"D",{"$f":"E92","v":1800},{"$f":"F92","v":1800}]
["Tatsächlich geleistete Arbeitsstunden",null,"ABD","-",{"$f":"E130","v":0},{"$f":"F130","v":0}]
["Akzeptierte geleistete Arbeitsstunden",null,null,"-",{"$f":"MIN(E130,E92)","v":0},{"$f":"MIN(F130,F92)","v":0}]
["eingereichte Personalkosten (ohne Obergrenze)",null,"ABD","ABD",{"$f":"MIN(E130,E92)*E107","v":0},{"$f":"MIN(F130,F92)*F107","v":0},{"$f":"E145","v":0},{"$f":"F145","v":0}]
["Personalkostenobergrenze lt. Dienstkl. VII/2",null,"ABD","ABD",{"$f":"E144*E108","v":0},{"$f":"F144*F108","v":0}]
["eingereichte anrechenbare Personalkosten",null,null,"ABD",{"$f":"MIN(E145:E146)","v":0},{"$f":"MIN(F145:F146)","v":0},{"$f":"E147","v":0},{"$f":"F147","v":0}]
["eingereichte anrechenb. Gemeinkosten (Pauschalsatz in %)",null,null,"ABD",0,0]
["eingereichte anrechenb. Gemeinkosten in €",null,null,"ABD",{"$f":"E147*E148","v":0},{"$f":"F147*F148","v":0},{"$f":"E149","v":0},{"$f":"F149","v":0}]
["eingereichte anrechenb. Personalkosten inkl. Gemeink. in €",null,null,"ABD",{"$f":"E147+E149","v":0},{"$f":"F147+F149","v":0},{"$f":"E150","v":0},{"$f":"F150","v":0}]
[null,null,null,"ABD"]
["Warnung: Durch das Klicken auf \"Eingabe abschließen\" werden\nalle obigen Felder gesperrt. Es sind danach keine Änderungen oder Ergänzungen mehr möglich!",null,null,"ABCD"]
[null,null,null,"ABCD"]
[null,null,null,"ABCD"]
[null,null,null,"ABCD"]
[null,"Ja",null,"ABCD"]
[null,"Nein",null,"ABCD"]
["Eingabe abgeschlossen am 21. Nov. 2015 (18:00)",null,null,"ABCD"]
[null,null,null,"ABCD"]
[null,null,null,"ABCD"]
[null,null,null,"ABCD"]
[null,null,null,"ABCD"]
["Unterschrift",null,null,"ABCD"]
[null,null,null,"ABCD"]
[null,null,null,"ABCD"]
["Beurteilung der Stundenübersicht von BST auszufüllen",null,null,"ABCD",null,null,"Summe","Summe"]
["    Stundensatz lt. FW in €/Std",null,"ABCD","-",{"$f":"IF(Labour_SelectedCalcTypeCell=\"C\",E115/E92,E113)","v":0},{"$f":"E167","v":0}]
["    Stundensatz nach VWK in €/Std",null,"ABCD","-",{"$f":"E167","v":0},{"$f":"IF(Labour_SelectedCalcTypeCell=\"C\",F116/F92,F114)","v":0}]
["    Stunden lt. Förderwerber",null,"ABCD","-",{"$f":"IF(Labour_SelectedCalcTypeCell=\"A\",E77,IF(Labour_SelectedCalcTypeCell=\"C\",E92,E143))","v":0},{"$f":"IF(Labour_SelectedCalcTypeCell=\"A\",F77,IF(Labour_SelectedCalcTypeCell=\"C\",F92,F143))","v":0}]
["    Stunden maximal",null,"ABCD","-",{"$f":"E92","v":1800},{"$f":"F92","v":1800}]
["    Gemeinskostensatz",null,"ABCD","-",{"$f":"IF(Labour_SelectedCalcTypeCell=\"C\",E117,E148)","v":0},{"$f":"IF(Labour_SelectedCalcTypeCell=\"C\",F117,F148)","v":0}]
["Anzahl der zu verminderten Stunden nach VWK",null,null,"ABCD",0,0,null,{"$f":"G172","v":0}]
["Anzahl der sanktionsrelevant zu verminderten Stunden nach  VWK",null,null,"ABCD",0,0,null,{"$f":"G173","v":0}]
[null,null,null,"ABCD"]
["Anzahl der zu verminderten Stunden nach VOK",null,null,"ABCD",null,null,null,{"$f":"G175","v":0}]
["Anzahl der sanktionsrelevant zu verminderten Stunden nach  VOK",null,null,"ABCD",null,null,null,{"$f":"G176","v":0}]
[{"$f":"COUNT(E175:F175)","v":0},null,null,"-",null,null,null,{"$f":"G177","v":0}]
[{"$f":"COUNT(E175:F176)","v":0},null,null,"-",null,null,null,{"$f":"G178","v":0}]
[null,null,null,"ABCD"]
["Personalkosten eingereicht laut FW",null,null,"ABCD",{"$f":"MIN(E169,E170)*E167","v":0},{"$f":"MIN(F169,F170)*F167","v":0},null,{"$f":"G180","v":0}]
["Personalkosten vermindert nach VWK",null,null,"ABCD",{"$f":"MAX(0,MIN((E169-E172),E170)*E167)","v":0},{"$f":"MAX(0,MIN((F169-F172),F170)*F168)","v":0},null,{"$f":"G181","v":0}]
["Personalkosten anrechenbar nach VWK",null,null,"ABCD",{"$f":"MAX(0,MIN((E169-E172-E173),E170)*E167)","v":0},{"$f":"MAX(0,MIN((F169-F172-F173),F170)*F168)","v":0},null,{"$f":"G182","v":0}]
[null,null,null,"ABCD"]
["Personalkosten inkl. Gemeinkosten eingereicht laut FW",null,null,"ABCD",{"$f":"E180*(1+E171)","v":0},{"$f":"F180*(1+F171)","v":0},null,{"$f":"G184","v":0}]
["Personalkosten inkl. Gemeinkosten vermindert nach VWK",null,null,"ABCD",{"$f":"E181*(1+E171)","v":0},{"$f":"F181*(1+F171)","v":0},null,{"$f":"G185","v":0}]
["Personalkosten inkl. Gemeinkosten anrechenbar nach VWK",null,null,"ABCD",{"$f":"E182*(1+E171)","v":0},{"$f":"F182*(1+F171)","v":0},null,{"$f":"G186","v":0}]
[null,null,null,"ABCD"]
["Personalkosten vermindert nach VOK",null,null,"ABCD",{"$f":"IF($A177>0,MAX(0,MIN((E169-E172-E173-E175),E170)*E167),\"\")","v":""},{"$f":"IF($A178>0,MAX(0,MIN((F169-F172-F173-F175),F170)*F168),\"\")","v":""},{"$f":"F188","v":""},{"$f":"G188","v":""}]
["Personalkosten anrechenbar nach VOK",null,null,"ABCD",{"$f":"IF($A177>0,MAX(0,MIN((E169-E172-E173-E175-E176),E170)*E167),\"\")","v":""},{"$f":"IF($A178>0,MAX(0,MIN((F169-F172-F173-F175-F176),F170)*F168),\"\")","v":""},{"$f":"F189","v":""},{"$f":"G189","v":""}]
[null,null,null,"ABCD"]
["Personalkosten inkl. Gemeinkosten vermindert nach VOK",null,null,"ABCD",{"$f":"IF(E188=\"\",\"\",E188*(1+E171))","v":""},{"$f":"IF(F188=\"\",\"\",F188*(1+F171))","v":""},{"$f":"F191","v":""},{"$f":"G191","v":""}]
["Personalkosten inkl. Gemeinkosten anrechenbar nach VOK",null,null,"ABCD",{"$f":"IF(E189=\"\",\"\",E189*(1+E171))","v":""},{"$f":"IF(F189=\"\",\"\",F189*(1+F171))","v":""},{"$f":"F192","v":""},{"$f":"G192","v":""}]
[null,null,null,"ABCD"]
["Verwendete Abkürzungen:\n   FW ….. Förderungswerber\n   BST .... Bewilligende Stelle\n   VWK .. Verwaltungskontrolle\n   VOK … Vor-Ort-Kontrolle",null,null,"ABCD"]

{"sheet":"TEMPLATE Gehaltsgrenzen","index":10,"n_rows":27,"n_cols":4,"rows_kept":27,"cut":false,"hidden":true,"merged":[]}
[2015,"[1] Beamten","[2] ASVG"]
["Jahr ","Dienstkl. VII/2","HöchstbeitragsGL"]
[2007,64120.14,53760,{"$f":"C3/14","v":3840}]
[2008,65829.600000000006,55020,3930]
[2009,68166.820000000007,56280,4020]
[2010,68858.89,57540,4110]
[2011,69450,58800,4200]
[2012,71290,59220,4230]
[2013,71280,62160,4440]
[2014,72380,63420,{"$f":"C10/14","v":4530}]
[2015,73670,65100,{"$f":"C11/14","v":4650}]
[2016,100000,80000]
[2017,100000,80000]
[2018,100000,80000]
[2019,100000,80000]
[2020,100000,80000]
[2021,100000,80000]
[2022,100000,80000]
[2023,100000,80000]
[]
["ACHTUNG: Wenn Daten für ein neues Jahr eingetragen werden, muss auch in Zelle A1 die Jahreszahl angepasst werden."]
["Sonst beschwert sich die Personalkostenaufstellung weiter über ungültige Höchstwerte."]
[]
["[1] Jahresbruttogehälter für Beamte der allgemeinen Verwaltung der Dienstklasse VII / Gehaltstufe 2 (lt. Gehaltsgesetz - GehG §118??)"]
[null,"Quelle: ???"]
["[2] ASVG (Allgem. SozialVersicherungsGesetz) Höchstbeitragsgrundlage für die Berechnung der Beiträge zur Sozialversicherung"]
[null,"https://de.wikipedia.org/wiki/Höchstbeitragsgrundlage"]